Workbook

Sheet Revision History (hidden)
B2: Revision History
C3: WRES2
B4: Version | C4: Date | D4: Change
B5: 1 | C5: 2019-04-03 | D5: Changed dates - Owen Chinembiri
B6: 2 | C6: 2019-06-06 | D6: Updated Template - MM
B7: 3 | C7: 2019-06-12 | D7: Backsheet Added - AB
B8: 3.1 | C8: 2019-06-13 | D8: Sheets locked down and upversioned for SharePoint and SDCS - RL
B9: 4 | C9: 2019-06-14 | D9: Upversioned and error message made visible - RL
B10: 5 | C10: 2019-06-17 | D10: Autocalculation formulae added back in from Mo's template - RL
B11: 5.1 | C11: 2019-07-01 | D11: Edited validation formula on Control Panel to check for right amount of cells - RL
B12: 6 | C12: 2019-07-10 | D12: Updated Cells

Sheet Cover
B2: Workforce Race Equality Standards annual collection
B4: as at March-2019
C9: Period: | E9: April 2016-17

Sheet Control_Panel
K1: Backsheet check
B2: Workforce Race Equality Standards | K2: =IF(SUM(IF(ISERROR(INDIRECT("Backsheet!" &L2)),1,0))=0,0,1) -> 0 | L2: A2:ZZ500
B4: Validations
B5: Please correct all issues listed within the table below. If the issues are not corrected then the pro forma will fail the validation stage in SDCS.
B9: Trust - Frontsheet
B10: =IF(COUNTA(answer_cells)<>550,"Please complete all yellow answer cells on the 'Data for submission' tab. The 'Validation and Data Checks' tab can be used to identify which cells still need to be answered.","") ->  | J10: =B10 -> 
B11: =IF(SUM(COUNTIF(INDIRECT({"'Data for submission '!$G$73","'Data for submission '!$G$69:$G$70","'Data for submission '!$I$69:$I$70","'Data for submission '!$I$73","'Data for submission '!$K$73","'Data for submission '!$K$69:$K$70","'Data for submission '!$M$69:$M$70","'Data for submission '!$M$73","'Data for submission '!$O$69:$O$70","'Data for submission '!$O$73","'Data for submission '!$Q$69:$Q$70","'Data for submission '!$Q$73","'Data for submission '!$Q$62","'Data for submission '!$O$62","'Data for submission '!$M$62","'Data for submission '!$Q$58","'Data for submission '!$O$58","'Data for submission '!$M$58","'Data for submission '!$G$48:$G$52","'Data for submission '!$I$48:$I$54","'Data for submission '!$K$48:$K$54","'Data for submission '!$M$48:$M$54","'Data for submission '!$O$48:$O$54","'Data for submission '!$Q$48:$Q$54","'Data for submission '!$Q$38:$Q$46","'Data for submission '!$O$33:$O$46","'Data for submission '!$Q$33:$Q$37","'Data for submission '!$M$33:$M$46","'Data for submission '!$K$33:$K$46","'Data for submission '!$I$33:$I$46","'Data for submission '!$G$33:$G$46","'Data for submission '!$G$17:$G$30","'Data for submission '!$I$17:$I$30","'Data for submission '!$K$17:$K$29","'Data for submission '!$K$30","'Data for submission '!$M$17:$M$30","'Data for submission '!$O$17:$O$30","'Data for submission '!$Q$17:$Q$30"}),"*"))>0,"Answer cells cannot contain text.","") ->  | J11: =B11 -> 

Sheet Data for submission
B3: SubmissionTemplate
B5: Workforce Race Equality Standards 2018/19 template
G9: Answer Required
G10: Auto Populated
G11: N/A
F13: 31st MARCH 2018 | L13: 31st MARCH 2019
A14: INDICATOR | C14: DATA ITEM | E14: MEASURE | F14: WHITE | H14: BME | J14: ETHNICITY UNKNOWN/NULL | L14: WHITE | N14: BME | P14: ETHNICITY UNKNOWN/NULL | R14: Notes
A16: 1 | B16: Percentage of staff in each of the AfC Bands 1-9 OR Medical and Dental subgroups and VSM (including executive Board members) compared with the percentage of staff in the overall workforce | D16: 1a) Non Clinical workforce | F16: ESR figures | G16: Verified figures | H16: ESR figures | I16: Verified figures | J16: ESR figures | K16: Verified figures | L16: ESR figures | M16: Verified figures | N16: ESR figures | O16: Verified figures | P16: ESR figures | Q16: Verified figures
C17: 1 | D17: Under Band 1 | E17: Headcount | F17: 6 | G17: 6 | H17: 32 | I17: 31 | J17: 0 | K17: 0 | L17: 7 | M17: 7 | N17: 31 | O17: 31 | P17: 1 | Q17: 1 | S17: < Band 1 (i.e. Apprentices) | T17: Non Clinical | V17: White
C18: 2 | D18: Band 1 | E18: Headcount | F18: 0 | G18: 0 | H18: 0 | I18: 0 | J18: 0 | K18: 0 | L18: 0 | M18: 0 | N18: 0 | O18: 0 | P18: 0 | Q18: 0 | S18: Band 1 | T18: Non Clinical | V18: BME
C19: 3 | D19: Band 2 | E19: Headcount | F19: 2 | G19: 2 | H19: 5 | I19: 5 | J19: 0 | K19: 0 | L19: 29 | M19: 29 | N19: 5 | O19: 5 | P19: 0 | Q19: 0 | S19: Band 2 | T19: Non Clinical | V19: Unknown/Null
C20: 4 | D20: Band 3 | E20: Headcount | F20: 65 | G20: 64 | H20: 98 | I20: 98 | J20: 2 | K20: 2 | L20: 94 | M20: 94 | N20: 116 | O20: 116 | P20: 4 | Q20: 4 | S20: Band 3 | T20: Non Clinical
C21: 5 | D21: Band 4 | E21: Headcount | F21: 134 | G21: 134 | H21: 196 | I21: 194 | J21: 12 | K21: 12 | L21: 137 | M21: 137 | N21: 187 | O21: 187 | P21: 16 | Q21: 16 | S21: Band 4 | T21: Non Clinical
C22: 6 | D22: Band 5 | E22: Headcount | F22: 81 | G22: 81 | H22: 91 | I22: 90 | J22: 5 | K22: 5 | L22: 91 | M22: 91 | N22: 110 | O22: 110 | P22: 8 | Q22: 8 | S22: Band 5 | T22: Non Clinical
C23: 7 | D23: Band 6 | E23: Headcount | F23: 58 | G23: 57 | H23: 64 | I23: 64 | J23: 3 | K23: 3 | L23: 69 | M23: 69 | N23: 65 | O23: 65 | P23: 7 | Q23: 7 | S23: Band 6 | T23: Non Clinical
C24: 8 | D24: Band 7 | E24: Headcount | F24: 48 | G24: 49 | H24: 31 | I24: 30 | J24: 0 | K24: 0 | L24: 47 | M24: 47 | N24: 30 | O24: 30 | P24: 3 | Q24: 3 | S24: Band 7 | T24: Non Clinical
C25: 9 | D25: Band 8A | E25: Headcount | F25: 53 | G25: 51 | H25: 28 | I25: 29 | J25: 1 | K25: 1 | L25: 51 | M25: 51 | N25: 40 | O25: 40 | P25: 4 | Q25: 4 | S25: Band 8a | T25: Non Clinical
C26: 10 | D26: Band 8B | E26: Headcount | F26: 31 | G26: 31 | H26: 5 | I26: 5 | J26: 0 | K26: 0 | L26: 23 | M26: 23 | N26: 8 | O26: 8 | P26: 0 | Q26: 0 | S26: Band 8b | T26: Non Clinical
C27: 11 | D27: Band 8C | E27: Headcount | F27: 19 | G27: 19 | H27: 6 | I27: 6 | J27: 0 | K27: 0 | L27: 23 | M27: 23 | N27: 6 | O27: 6 | P27: 0 | Q27: 0 | S27: Band 8c | T27: Non Clinical
C28: 12 | D28: Band 8D | E28: Headcount | F28: 15 | G28: 16 | H28: 0 | I28: 0 | J28: 0 | K28: 0 | L28: 22 | M28: 22 | N28: 2 | O28: 2 | P28: 0 | Q28: 0 | S28: Band 8d | T28: Non Clinical
C29: 13 | D29: Band 9 | E29: Headcount | F29: 4 | G29: 6 | H29: 0 | I29: 2 | J29: 0 | K29: 0 | L29: 7 | M29: 7 | N29: 2 | O29: 2 | P29: 0 | Q29: 0 | S29: Band 9 | T29: Non Clinical
C30: 14 | D30: VSM | E30: Headcount | F30: 7 | G30: 5 | H30: 5 | I30: 4 | J30: 0 | K30: 0 | L30: 3 | M30: 3 | N30: 4 | O30: 4 | P30: 0 | Q30: 0 | S30: VSM | T30: Non Clinical
D31: 1b) Clinical workforce of which Non Medical
C33: 15 | D33: Under Band 1 | E33: Headcount | F33: 5 | G33: 4 | H33: 12 | I33: 12 | J33: 0 | K33: 1 | L33: 7 | M33: 7 | N33: 8 | O33: 8 | P33: 0 | Q33: 0 | S33: < Band 1 (i.e. Apprentices) | T33: Clinical
C34: 16 | D34: Band 1 | E34: Headcount | F34: 0 | G34: 0 | H34: 0 | I34: 0 | J34: 0 | K34: 0 | L34: 0 | M34: 0 | N34: 0 | O34: 0 | P34: 0 | Q34: 0 | S34: Band 1 | T34: Clinical
C35: 17 | D35: Band 2 | E35: Headcount | F35: 0 | G35: 0 | H35: 5 | I35: 3 | J35: 0 | K35: 0 | L35: 18 | M35: 18 | N35: 1 | O35: 1 | P35: 0 | Q35: 0 | S35: Band 2 | T35: Clinical
C36: 18 | D36: Band 3 | E36: Headcount | F36: 207 | G36: 191 | H36: 489 | I36: 469 | J36: 13 | K36: 13 | L36: 211 | M36: 211 | N36: 462 | O36: 462 | P36: 32 | Q36: 32 | S36: Band 3 | T36: Clinical
C37: 19 | D37: Band 4 | E37: Headcount | F37: 129 | G37: 130 | H37: 155 | I37: 156 | J37: 2 | K37: 2 | L37: 164 | M37: 164 | N37: 204 | O37: 204 | P37: 13 | Q37: 13 | S37: Band 4 | T37: Clinical
C38: 20 | D38: Band 5 | E38: Headcount | F38: 200 | G38: 197 | H38: 392 | I38: 393 | J38: 14 | K38: 14 | L38: 277 | M38: 277 | N38: 393 | O38: 393 | P38: 12 | Q38: 12 | S38: Band 5 | T38: Clinical
C39: 21 | D39: Band 6 | E39: Headcount | F39: 345 | G39: 343 | H39: 472 | I39: 472 | J39: 8 | K39: 8 | L39: 408 | M39: 408 | N39: 510 | O39: 510 | P39: 22 | Q39: 22 | S39: Band 6 | T39: Clinical
C40: 22 | D40: Band 7 | E40: Headcount | F40: 388 | G40: 384 | H40: 253 | I40: 254 | J40: 10 | K40: 10 | L40: 487 | M40: 487 | N40: 287 | O40: 287 | P40: 23 | Q40: 23 | S40: Band 7 | T40: Clinical
C41: 23 | D41: Band 8A | E41: Headcount | F41: 225 | G41: 230 | H41: 90 | I41: 91 | J41: 9 | K41: 9 | L41: 232 | M41: 232 | N41: 95 | O41: 95 | P41: 13 | Q41: 13 | S41: Band 8a | T41: Clinical
C42: 24 | D42: Band 8B | E42: Headcount | F42: 67 | G42: 67 | H42: 17 | I42: 17 | J42: 1 | K42: 1 | L42: 85 | M42: 85 | N42: 26 | O42: 26 | P42: 4 | Q42: 4 | S42: Band 8b | T42: Clinical
C43: 25 | D43: Band 8C | E43: Headcount | F43: 35 | G43: 35 | H43: 10 | I43: 9 | J43: 0 | K43: 0 | L43: 41 | M43: 41 | N43: 10 | O43: 10 | P43: 0 | Q43: 0 | S43: Band 8c | T43: Clinical
C44: 26 | D44: Band 8D | E44: Headcount | F44: 9 | G44: 9 | H44: 2 | I44: 2 | J44: 1 | K44: 1 | L44: 10 | M44: 10 | N44: 1 | O44: 1 | P44: 2 | Q44: 2 | S44: Band 8d | T44: Clinical
C45: 27 | D45: Band 9 | E45: Headcount | F45: 2 | G45: 4 | H45: 1 | I45: 1 | J45: 0 | K45: 0 | L45: 3 | M45: 3 | N45: 1 | O45: 1 | P45: 0 | Q45: 0 | S45: Band 9 | T45: Clinical
C46: 28 | D46: VSM | E46: Headcount | F46: 5 | G46: 0 | H46: 0 | I46: 0 | J46: 0 | K46: 0 | L46: 1 | M46: 1 | N46: 2 | O46: 2 | P46: 0 | Q46: 0 | S46: VSM | T46: Clinical
D47: Of which Medical & Dental
C48: 29 | D48: Consultants | E48: Headcount | F48: 148 | G48: 132 | H48: 92 | I48: 75 | J48: 6 | K48: 3 | L48: 125 | M48: 125 | N48: 71 | O48: 71 | P48: 11 | Q48: 11 | S48: Medical & Dental Consultant | T48: Clinical
C49: 30 | D49: of which Senior medical manager | E49: Headcount | G49: 0 | I49: 0 | K49: 0 | M49: 0 | O49: 0 | Q49: 0
C50: 31 | D50: Non-consultant career grade | E50: Headcount | F50: 19 | G50: 19 | H50: 39 | I50: 38 | J50: 4 | K50: 4 | L50: 24 | M50: 24 | N50: 39 | O50: 39 | P50: 4 | Q50: 4 | S50: Medical & Dental Non-consultant career grade | T50: Clinical
C51: 32 | D51: Trainee grades | E51: Headcount | F51: 10 | G51: 57 | H51: 10 | I51: 56 | J51: 0 | K51: 6 | L51: 49 | M51: 49 | N51: 65 | O51: 65 | P51: 9 | Q51: 9 | S51: Medical & Dental Trainee grades | T51: Clinical
C52: 33 | D52: Other | E52: Headcount | F52: 28 | G52: 27 | H52: 28 | I52: 27 | J52: 4 | K52: 0 | L52: 5 | M52: 5 | N52: 3 | O52: 3 | P52: 0 | Q52: 0 | S52: Medical & Dental Other | T52: Clinical
A53: 2 | B53: Relative likelihood of staff being appointed from shortlisting across all posts | C53: 34 | D53: Number of shortlisted applicants | E53: Headcount | G53: 2174 | I53: 3123 | K53: 39 | M53: 1627 | O53: 3737 | Q53: 199 | W53: 2.552292524 | X53: 0.5559166561
C54: 35 | D54: Number appointed from shortlisting | E54: Headcount | G54: 414 | I54: 455 | K54: 0 | M54: 410 | O54: 674 | Q54: 37
C55: 36 | D55: Relative likelihood of appointment from shortlisting | E55: Auto calculated | G55: =IFERROR(G54/G53,"") -> 0.1904323827 | I55: =IFERROR(I54/I53,"") -> 0.1456932437 | K55: =IFERROR(K54/K53,"") -> 0 | M55: =IFERROR(M54/M53,"") -> 0.2519975415 | O55: =IFERROR(O54/O53,"") -> 0.1803585764 | Q55: =IFERROR(Q54/Q53,"") -> 0.1859296482
C56: 37 | D56: Relative likelihood of White staff being appointed from shortlisting compared to BME staff | E56: Auto calculated | G56: =IFERROR(G55/I55,"") -> 1.307077651 | M56: =IFERROR(M55/O55,"") -> 1.397202986
A57: 3 | B57: Relative likelihood of staff entering the formal disciplinary process, as measured by entry into a formal disciplinary investigation Note: This indicator will be based on data from a two year rolling average of the current year and the previous year | C57: 38 | D57: Number of staff in workforce | E57: Auto calculated | G57: =IF(SUM(G17:G30)+SUM(G33:G46)+G48+SUM(G50:G52)=0,"",SUM(G17:G30)+SUM(G33:G46)+G48+SUM(G50:G52)) -> 2350 | I57: =IF(SUM(I17:I30)+SUM(I33:I46)+I48+SUM(I50:I52)=0,"",SUM(I17:I30)+SUM(I33:I46)+I48+SUM(I50:I52)) -> 2633 | K57: =IF(SUM(K17:K30)+SUM(K33:K46)+K48+SUM(K50:K52)=0,"",SUM(K17:K30)+SUM(K33:K46)+K48+SUM(K50:K52)) -> 95 | M57: =IF(SUM(M17:M30)+SUM(M33:M46)+M48+SUM(M50:M52)=0,"",SUM(M17:M30)+SUM(M33:M46)+M48+SUM(M50:M52)) -> 2750 | O57: 2784 | Q57: 188 | W57: 4.315868004 | X57: 0
C58: 39 | D58: Number of staff entering the formal disciplinary process | E58: Headcount | G58: 18 | I58: 56 | K58: 0 | M58: 15 | O58: 37 | Q58: 0
C59: 40 | D59: Likelihood of staff entering the formal disciplinary process | E59: Auto calculated | G59: =IFERROR(G58/G57,"") -> 0.007659574468 | I59: =IFERROR(I58/I57,"") -> 0.021268515 | K59: =IFERROR(K58/K57,"") -> 0 | M59: =IFERROR(M58/M57,"") -> 0.005454545455 | O59: =IFERROR(O58/O57,"") -> 0.01329022989 | Q59: =IFERROR(Q58/Q57,"") -> 0
C60: 41 | D60: Relative likelihood of BME staff entering the formal disciplinary process compared to White staff | E60: Auto calculated | I60: =IFERROR(I59/G59,"") -> 2.776722792 | O60: =IFERROR(O59/M59,"") -> 2.436542146
A61: 4 | B61: Relative likelihood of staff accessing non-mandatory training and CPD | C61: 42 | D61: Number of staff in workforce | E61: Auto calculated | G61: =G57 -> 2350 | I61: =I57 -> 2633 | K61: =K57 -> 95 | M61: =M57 -> 2750 | O61: =O57 -> 2784 | Q61: =Q57 -> 188 | W61: 2.052158313 | X61: 0.1029898185
C62: 43 | D62: Number of staff accessing non-mandatory training and CPD: | E62: Headcount | G62: 1036 | I62: 1122 | K62: 33 | M62: 1469 | O62: 1714 | Q62: 74 | R62: The following are sources that were used in the collection of this data: All doctors due to their weekly CPD; Health roster study days for activities that were non-stat and non-man training; Emails from executives, service delivery board members, DMT's and HR BPs confirming their CPD activity and that of their teams; OLM (for all centrally booked non-mandatory training programmes, including nursing development); Coaching, mentoring, 360 degree feedback as well as other individual diagnostic and develpment/psychometric tools; Information recieved from directorate education committees and development provider to community teams.
C63: 44 | D63: Likelihood of staff accessing non-mandatory training and CPD | E63: Auto calculated | G63: =IFERROR(G62/G61,"") -> 0.4408510638 | I63: =IFERROR(I62/I61,"") -> 0.4261298899 | K63: =IFERROR(K62/K61,"") -> 0.3473684211 | M63: =IFERROR(M62/M61,"") -> 0.5341818182 | O63: =IFERROR(O62/O61,"") -> 0.6156609195 | Q63: =IFERROR(Q62/Q61,"") -> 0.3936170213
C64: 45 | D64: Relative likelihood of White staff accessing non-mandatory training and CPD compared to BME staff | E64: Auto calculated | G64: =IFERROR(G63/I63,"") -> 1.034546213 | M64: =IFERROR(M63/O63,"") -> 0.867655882
A65: 5 | B65: Percentage of staff experiencing harassment, bullying or abuse from patients, relatives or the public in last 12 months | C65: 46 | D65: % of staff experiencing harassment, bullying or abuse from patients, relatives or the public in last 12 months | E65: Percentage | G65: 0.2891 | I65: 0.3262 | M65: 0.317 | O65: 0.356 | R65: Please refer to the Picker staff survey RWK_East London NHS Foundation NNS18 RAG_Table _ Not experienced harassment, bullying or abuse from patients/service users, their relatives or members of the public. As this question is captured differently to the one on the WRES capture template - we have transposed the %
A66: 6 | B66: Percentage of staff experiencing harassment, bullying or abuse from staff in last 12 months | C66: 47 | D66: % of staff experiencing harassment, bullying or abuse from staff in last 12 months | E66: Percentage | G66: 0.2324 | I66: 0.2257 | M66: 0.162 | O66: 0.18 | R66: Please refer to the Picker staff survey RWK_East London NHS Foundation NNS18 RAG_Table _ Not experienced harassment, bullying or abuse from other colleagues. As this question is captured differently to the one on the WRES capture template - we have transposed the %
A67: 7 | B67: Percentage believing that trust provides equal opportunities for career progression or promotion | C67: 48 | D67: % staff believing that trust provides equal opportunities for career progression or promotion | E67: Percentage | G67: 0.8381 | I67: 0.7257 | M67: 0.847 | O67: 0.718
A68: 8 | B68: In the last 12 months have you personally experienced discrimination at work from any of the following? b) Manager/team leader or other colleagues | C68: 49 | D68: % staff personally experienced discrimination at work from Manager/team leader or other colleague | E68: Percentage | G68: 0.0909 | I68: 0.1302 | M68: 0.084 | O68: 0.144 | R68: Please refer to the Picker staff survey RWK_East London NHS Foundation NNS18 RAG_Table _ Not experienced discrimination from manager/team leader or other colleagues. As this question is captured differently to the one on the WRES capture template - we have transposed the %
A69: 9 | B69: Percentage difference between the organisations’ Board voting membership and its overall workforce Note: Only voting members of the Board should be included when considering this indicator | C69: 50 | D69: Total Board members | E69: Headcount | G69: 10 | I69: 8 | K69: 0 | M69: 9 | O69: 9 | Q69: 0
C70: 51 | D70: of which: Voting Board members | E70: Headcount | G70: 8 | I70: 7 | K70: 0 | M70: 8 | O70: 7 | Q70: 0
C71: 52 | D71: : Non Voting Board members | E71: Auto calculated | G71: =IFERROR(G69-G70,"Error") -> 2 | I71: =IFERROR(I69-I70,"Error") -> 1 | K71: =IFERROR(K69-K70,"Error") -> 0 | M71: =IFERROR(M69-M70,"Error") -> 1 | O71: =IFERROR(O69-O70,"Error") -> 2 | Q71: =IFERROR(Q69-Q70,"Error") -> 0
C72: 53 | D72: Total Board members | E72: Auto calculated | G72: =G69 -> 10 | I72: =I69 -> 8 | K72: =K69 -> 0 | M72: =M69 -> 9 | O72: =O69 -> 9 | Q72: =Q69 -> 0
C73: 54 | D73: of which: Exec Board members | E73: Headcount | G73: 5 | I73: 5 | K73: 0 | M73: 4 | O73: 6 | Q73: 0
C74: 55 | D74: : Non Executive Board members | E74: Auto calculated | G74: =IFERROR(G72-G73,"Error") -> 5 | I74: =IFERROR(I72-I73,"Error") -> 3 | K74: =IFERROR(K72-K73,"Error") -> 0 | M74: =IFERROR(M72-M73,"Error") -> 5 | O74: =IFERROR(O72-O73,"Error") -> 3 | Q74: =IFERROR(Q72-Q73,"Error") -> 0
C75: 56 | D75: Number of staff in overall workforce | E75: Auto calculated | G75: =IFERROR(SUM(G17:G30)+SUM(G33:G46)+G48+G50+G51+G52,"") -> 2350 | I75: =IFERROR(SUM(I17:I30)+SUM(I33:I46)+I48+I50+I51+I52,"") -> 2633 | K75: =IFERROR(SUM(K17:K30)+SUM(K33:K46)+K48+K50+K51+K52,"") -> 95 | M75: =M57 -> 2750 | O75: =O57 -> 2784 | Q75: =Q57 -> 188
C76: 57 | D76: Total Board members - % by Ethnicity | E76: Auto calculated | G76: =IFERROR(G69/($G$69+$I$69+$K$69),"") -> 0.5555555556 | I76: =IFERROR(I69/($G$69+$I$69+$K$69),"") -> 0.4444444444 | K76: =IFERROR(K69/($G$69+$I$69+$K$69),"") -> 0 | M76: =IFERROR(M69/(M69+O69+Q69),"") -> 0.5 | O76: =IFERROR(O69/(M69+O69+Q69),"") -> 0.5 | Q76: =IFERROR(Q69/(M69+O69+Q69),"") -> 0
C77: 58 | D77: Voting Board Member - % by Ethnicity | E77: Auto calculated | G77: =IFERROR(G70/($G$70+$I$70+$K$70),"") -> 0.5333333333 | I77: =IFERROR(I70/($G$70+$I$70+$K$70),"") -> 0.4666666667 | K77: =IFERROR(K70/($G$70+$I$70+$K$70),"") -> 0 | M77: =IFERROR(M70/(M70+O70+Q70),"") -> 0.5333333333 | O77: =IFERROR(O70/(M70+O70+Q70),"") -> 0.4666666667 | Q77: =IFERROR(Q70/(M70+O70+Q70),"") -> 0
C78: 59 | D78: Non Voting Board Member - % by Ethnicity | E78: Auto calculated | G78: =IFERROR(G71/($G$71+$I$71+$K$71),"") -> 0.6666666667 | I78: =IFERROR(I71/($G$71+$I$71+$K$71),"") -> 0.3333333333 | K78: =IFERROR(K71/($G$71+$I$71+$K$71),"") -> 0 | M78: =IFERROR(M71/(M71+O71+Q71),"") -> 0.3333333333 | O78: =IFERROR(O71/(M71+O71+Q71),"") -> 0.6666666667 | Q78: =IFERROR(Q71/(M71+O71+Q71),"") -> 0
C79: 60 | D79: Executive Board Member - % by Ethnicity | E79: Auto calculated | G79: =IFERROR(G73/($G$73+$I$73+$K$73),"") -> 0.5 | I79: =IFERROR(I73/($G$73+$I$73+$K$73),"") -> 0.5 | K79: =IFERROR(K73/($G$73+$I$73+$K$73),"") -> 0 | M79: =IFERROR(M73/(M73+O73+Q73),"") -> 0.4 | O79: =IFERROR(O73/(M73+O73+Q73),"") -> 0.6 | Q79: =IFERROR(Q73/(M73+O73+Q73),"") -> 0
C80: 61 | D80: Non Executive Board Member - % by Ethnicity | E80: Auto calculated | G80: =IFERROR(G74/($G$74+$I$74+$K$74),"") -> 0.625 | I80: =IFERROR(I74/($G$74+$I$74+$K$74),"") -> 0.375 | K80: =IFERROR(K74/($G$74+$I$74+$K$74),"") -> 0 | M80: =IFERROR(M74/(M74+O74+Q74),"") -> 0.625 | O80: =IFERROR(O74/(M74+O74+Q74),"") -> 0.375 | Q80: =IFERROR(Q74/(M74+O74+Q74),"") -> 0
C81: 62 | D81: Overall workforce - % by Ethnicity | E81: Auto calculated | G81: =IFERROR(G75/($G$75+$I$75+$K$75),"") -> 0.4627806223 | I81: 0.5185112249 | K81: 0.01870815282 | M81: =IFERROR(M75/($M$75+$O$75+$Q$75),"") -> 0.4806011884 | O81: =IFERROR(O75/($M$75+$O$75+$Q$75),"") -> 0.4865431667 | Q81: =IFERROR(Q75/($M$75+$O$75+$Q$75),"") -> 0.03285564488
C82: 63 | D82: Difference (Total Board -Overall workforce ) | E82: Auto calculated | G82: =IFERROR(G76-G81,"") -> 0.09277493326 | I82: =IFERROR(I76-I81,"") -> -0.07406678045 | K82: =IFERROR(K76-K81,"") -> -0.01870815282 | M82: =IFERROR(M76-M81,"") -> 0.0193988116 | O82: =IFERROR(O76-O81,"") -> 0.01345683328 | Q82: =IFERROR(Q76-Q81,"") -> -0.03285564488

Sheet Validation and Data Checks
B3: SubmissionTemplate
B5: Workforce Race Equality Standards 2018/19 template
G10: =IF(G8>0,"There are errors. Please ensure all questions are answered","") -> 
F13: 31st MARCH 2018 | L13: 31st MARCH 2019
A14: INDICATOR | E14: MEASURE | F14: WHITE | H14: BME | J14: ETHNICITY UNKNOWN/NULL | L14: WHITE | N14: BME | P14: ETHNICITY UNKNOWN/NULL | R14: Notes
C15: DATA ITEM
A17: 1 | B17: Percentage of staff in each of the AfC Bands 1-9 OR Medical and Dental subgroups and VSM (including executive Board members) compared with the percentage of staff in the overall workforce | D17: 1a) Non Clinical workforce | F17: ESR figures | G17: Verified figures | H17: ESR figures | I17: Verified figures | J17: ESR figures | K17: Verified figures | L17: ESR figures | M17: Verified figures | N17: ESR figures | O17: Verified figures | P17: ESR figures | Q17: Verified figures
C18: 1 | D18: Under Band 1 | E18: Headcount | F18: =IF('Data for submission '!F17="","No Data",IF('Data for submission '!F17<0,"Error","OK")) -> OK | G18: =IF('Data for submission '!G17="","No Data",IF('Data for submission '!G17<0,"Error","OK")) -> OK | H18: =IF('Data for submission '!H17="","No Data",IF('Data for submission '!H17<0,"Error","OK")) -> OK | I18: =IF('Data for submission '!I17="","No Data",IF('Data for submission '!I17<0,"Error","OK")) -> OK | J18: =IF('Data for submission '!J17="","No Data",IF('Data for submission '!J17<0,"Error","OK")) -> OK | K18: =IF('Data for submission '!K17="","No Data",IF('Data for submission '!K17<0,"Error","OK")) -> OK | L18: =IF('Data for submission '!L17="","No Data",IF('Data for submission '!L17<0,"Error","OK")) -> OK | M18: =IF('Data for submission '!M17="","No Data",IF('Data for submission '!M17<0,"Error","OK")) -> OK | N18: =IF('Data for submission '!N17="","No Data",IF('Data for submission '!N17<0,"Error","OK")) -> OK | O18: =IF('Data for submission '!O17="","No Data",IF('Data for submission '!O17<0,"Error","OK")) -> OK | P18: =IF('Data for submission '!P17="","No Data",IF('Data for submission '!P17<0,"Error","OK")) -> OK | Q18: =IF('Data for submission '!Q17="","No Data",IF('Data for submission '!Q17<0,"Error","OK")) -> OK | S18: < Band 1 (i.e. Apprentices) | T18: Non Clinical | V18: White
C19: 2 | D19: Band 1 | E19: Headcount | F19: =IF('Data for submission '!F18="","No Data",IF('Data for submission '!F18<0,"Error","OK")) -> OK | G19: =IF('Data for submission '!G18="","No Data",IF('Data for submission '!G18<0,"Error","OK")) -> OK | H19: =IF('Data for submission '!H18="","No Data",IF('Data for submission '!H18<0,"Error","OK")) -> OK | I19: =IF('Data for submission '!I18="","No Data",IF('Data for submission '!I18<0,"Error","OK")) -> OK | J19: =IF('Data for submission '!J18="","No Data",IF('Data for submission '!J18<0,"Error","OK")) -> OK | K19: =IF('Data for submission '!K18="","No Data",IF('Data for submission '!K18<0,"Error","OK")) -> OK | L19: =IF('Data for submission '!L18="","No Data",IF('Data for submission '!L18<0,"Error","OK")) -> OK | M19: =IF('Data for submission '!M18="","No Data",IF('Data for submission '!M18<0,"Error","OK")) -> OK | N19: =IF('Data for submission '!N18="","No Data",IF('Data for submission '!N18<0,"Error","OK")) -> OK | O19: =IF('Data for submission '!O18="","No Data",IF('Data for submission '!O18<0,"Error","OK")) -> OK | P19: =IF('Data for submission '!P18="","No Data",IF('Data for submission '!P18<0,"Error","OK")) -> OK | Q19: =IF('Data for submission '!Q18="","No Data",IF('Data for submission '!Q18<0,"Error","OK")) -> OK | S19: Band 1 | T19: Non Clinical | V19: BME
C20: 3 | D20: Band 2 | E20: Headcount | F20: =IF('Data for submission '!F19="","No Data",IF('Data for submission '!F19<0,"Error","OK")) -> OK | G20: =IF('Data for submission '!G19="","No Data",IF('Data for submission '!G19<0,"Error","OK")) -> OK | H20: =IF('Data for submission '!H19="","No Data",IF('Data for submission '!H19<0,"Error","OK")) -> OK | I20: =IF('Data for submission '!I19="","No Data",IF('Data for submission '!I19<0,"Error","OK")) -> OK | J20: =IF('Data for submission '!J19="","No Data",IF('Data for submission '!J19<0,"Error","OK")) -> OK | K20: =IF('Data for submission '!K19="","No Data",IF('Data for submission '!K19<0,"Error","OK")) -> OK | L20: =IF('Data for submission '!L19="","No Data",IF('Data for submission '!L19<0,"Error","OK")) -> OK | M20: =IF('Data for submission '!M19="","No Data",IF('Data for submission '!M19<0,"Error","OK")) -> OK | N20: =IF('Data for submission '!N19="","No Data",IF('Data for submission '!N19<0,"Error","OK")) -> OK | O20: =IF('Data for submission '!O19="","No Data",IF('Data for submission '!O19<0,"Error","OK")) -> OK | P20: =IF('Data for submission '!P19="","No Data",IF('Data for submission '!P19<0,"Error","OK")) -> OK | Q20: =IF('Data for submission '!Q19="","No Data",IF('Data for submission '!Q19<0,"Error","OK")) -> OK | S20: Band 2 | T20: Non Clinical | V20: Unknown/Null
C21: 4 | D21: Band 3 | E21: Headcount | F21: =IF('Data for submission '!F20="","No Data",IF('Data for submission '!F20<0,"Error","OK")) -> OK | G21: =IF('Data for submission '!G20="","No Data",IF('Data for submission '!G20<0,"Error","OK")) -> OK | H21: =IF('Data for submission '!H20="","No Data",IF('Data for submission '!H20<0,"Error","OK")) -> OK | I21: =IF('Data for submission '!I20="","No Data",IF('Data for submission '!I20<0,"Error","OK")) -> OK | J21: =IF('Data for submission '!J20="","No Data",IF('Data for submission '!J20<0,"Error","OK")) -> OK | K21: =IF('Data for submission '!K20="","No Data",IF('Data for submission '!K20<0,"Error","OK")) -> OK | L21: =IF('Data for submission '!L20="","No Data",IF('Data for submission '!L20<0,"Error","OK")) -> OK | M21: =IF('Data for submission '!M20="","No Data",IF('Data for submission '!M20<0,"Error","OK")) -> OK | N21: =IF('Data for submission '!N20="","No Data",IF('Data for submission '!N20<0,"Error","OK")) -> OK | O21: =IF('Data for submission '!O20="","No Data",IF('Data for submission '!O20<0,"Error","OK")) -> OK | P21: =IF('Data for submission '!P20="","No Data",IF('Data for submission '!P20<0,"Error","OK")) -> OK | Q21: =IF('Data for submission '!Q20="","No Data",IF('Data for submission '!Q20<0,"Error","OK")) -> OK | S21: Band 3 | T21: Non Clinical
C22: 5 | D22: Band 4 | E22: Headcount | F22: =IF('Data for submission '!F21="","No Data",IF('Data for submission '!F21<0,"Error","OK")) -> OK | G22: =IF('Data for submission '!G21="","No Data",IF('Data for submission '!G21<0,"Error","OK")) -> OK | H22: =IF('Data for submission '!H21="","No Data",IF('Data for submission '!H21<0,"Error","OK")) -> OK | I22: =IF('Data for submission '!I21="","No Data",IF('Data for submission '!I21<0,"Error","OK")) -> OK | J22: =IF('Data for submission '!J21="","No Data",IF('Data for submission '!J21<0,"Error","OK")) -> OK | K22: =IF('Data for submission '!K21="","No Data",IF('Data for submission '!K21<0,"Error","OK")) -> OK | L22: =IF('Data for submission '!L21="","No Data",IF('Data for submission '!L21<0,"Error","OK")) -> OK | M22: =IF('Data for submission '!M21="","No Data",IF('Data for submission '!M21<0,"Error","OK")) -> OK | N22: =IF('Data for submission '!N21="","No Data",IF('Data for submission '!N21<0,"Error","OK")) -> OK | O22: =IF('Data for submission '!O21="","No Data",IF('Data for submission '!O21<0,"Error","OK")) -> OK | P22: =IF('Data for submission '!P21="","No Data",IF('Data for submission '!P21<0,"Error","OK")) -> OK | Q22: =IF('Data for submission '!Q21="","No Data",IF('Data for submission '!Q21<0,"Error","OK")) -> OK | S22: Band 4 | T22: Non Clinical
C23: 6 | D23: Band 5 | E23: Headcount | F23: =IF('Data for submission '!F22="","No Data",IF('Data for submission '!F22<0,"Error","OK")) -> OK | G23: =IF('Data for submission '!G22="","No Data",IF('Data for submission '!G22<0,"Error","OK")) -> OK | H23: =IF('Data for submission '!H22="","No Data",IF('Data for submission '!H22<0,"Error","OK")) -> OK | I23: =IF('Data for submission '!I22="","No Data",IF('Data for submission '!I22<0,"Error","OK")) -> OK | J23: =IF('Data for submission '!J22="","No Data",IF('Data for submission '!J22<0,"Error","OK")) -> OK | K23: =IF('Data for submission '!K22="","No Data",IF('Data for submission '!K22<0,"Error","OK")) -> OK | L23: =IF('Data for submission '!L22="","No Data",IF('Data for submission '!L22<0,"Error","OK")) -> OK | M23: =IF('Data for submission '!M22="","No Data",IF('Data for submission '!M22<0,"Error","OK")) -> OK | N23: =IF('Data for submission '!N22="","No Data",IF('Data for submission '!N22<0,"Error","OK")) -> OK | O23: =IF('Data for submission '!O22="","No Data",IF('Data for submission '!O22<0,"Error","OK")) -> OK | P23: =IF('Data for submission '!P22="","No Data",IF('Data for submission '!P22<0,"Error","OK")) -> OK | Q23: =IF('Data for submission '!Q22="","No Data",IF('Data for submission '!Q22<0,"Error","OK")) -> OK | S23: Band 5 | T23: Non Clinical
C24: 7 | D24: Band 6 | E24: Headcount | F24: =IF('Data for submission '!F23="","No Data",IF('Data for submission '!F23<0,"Error","OK")) -> OK | G24: =IF('Data for submission '!G23="","No Data",IF('Data for submission '!G23<0,"Error","OK")) -> OK | H24: =IF('Data for submission '!H23="","No Data",IF('Data for submission '!H23<0,"Error","OK")) -> OK | I24: =IF('Data for submission '!I23="","No Data",IF('Data for submission '!I23<0,"Error","OK")) -> OK | J24: =IF('Data for submission '!J23="","No Data",IF('Data for submission '!J23<0,"Error","OK")) -> OK | K24: =IF('Data for submission '!K23="","No Data",IF('Data for submission '!K23<0,"Error","OK")) -> OK | L24: =IF('Data for submission '!L23="","No Data",IF('Data for submission '!L23<0,"Error","OK")) -> OK | M24: =IF('Data for submission '!M23="","No Data",IF('Data for submission '!M23<0,"Error","OK")) -> OK | N24: =IF('Data for submission '!N23="","No Data",IF('Data for submission '!N23<0,"Error","OK")) -> OK | O24: =IF('Data for submission '!O23="","No Data",IF('Data for submission '!O23<0,"Error","OK")) -> OK | P24: =IF('Data for submission '!P23="","No Data",IF('Data for submission '!P23<0,"Error","OK")) -> OK | Q24: =IF('Data for submission '!Q23="","No Data",IF('Data for submission '!Q23<0,"Error","OK")) -> OK | S24: Band 6 | T24: Non Clinical
C25: 8 | D25: Band 7 | E25: Headcount | F25: =IF('Data for submission '!F24="","No Data",IF('Data for submission '!F24<0,"Error","OK")) -> OK | G25: =IF('Data for submission '!G24="","No Data",IF('Data for submission '!G24<0,"Error","OK")) -> OK | H25: =IF('Data for submission '!H24="","No Data",IF('Data for submission '!H24<0,"Error","OK")) -> OK | I25: =IF('Data for submission '!I24="","No Data",IF('Data for submission '!I24<0,"Error","OK")) -> OK | J25: =IF('Data for submission '!J24="","No Data",IF('Data for submission '!J24<0,"Error","OK")) -> OK | K25: =IF('Data for submission '!K24="","No Data",IF('Data for submission '!K24<0,"Error","OK")) -> OK | L25: =IF('Data for submission '!L24="","No Data",IF('Data for submission '!L24<0,"Error","OK")) -> OK | M25: =IF('Data for submission '!M24="","No Data",IF('Data for submission '!M24<0,"Error","OK")) -> OK | N25: =IF('Data for submission '!N24="","No Data",IF('Data for submission '!N24<0,"Error","OK")) -> OK | O25: =IF('Data for submission '!O24="","No Data",IF('Data for submission '!O24<0,"Error","OK")) -> OK | P25: =IF('Data for submission '!P24="","No Data",IF('Data for submission '!P24<0,"Error","OK")) -> OK | Q25: =IF('Data for submission '!Q24="","No Data",IF('Data for submission '!Q24<0,"Error","OK")) -> OK | S25: Band 7 | T25: Non Clinical
C26: 9 | D26: Band 8A | E26: Headcount | F26: =IF('Data for submission '!F25="","No Data",IF('Data for submission '!F25<0,"Error","OK")) -> OK | G26: =IF('Data for submission '!G25="","No Data",IF('Data for submission '!G25<0,"Error","OK")) -> OK | H26: =IF('Data for submission '!H25="","No Data",IF('Data for submission '!H25<0,"Error","OK")) -> OK | I26: =IF('Data for submission '!I25="","No Data",IF('Data for submission '!I25<0,"Error","OK")) -> OK | J26: =IF('Data for submission '!J25="","No Data",IF('Data for submission '!J25<0,"Error","OK")) -> OK | K26: =IF('Data for submission '!K25="","No Data",IF('Data for submission '!K25<0,"Error","OK")) -> OK | L26: =IF('Data for submission '!L25="","No Data",IF('Data for submission '!L25<0,"Error","OK")) -> OK | M26: =IF('Data for submission '!M25="","No Data",IF('Data for submission '!M25<0,"Error","OK")) -> OK | N26: =IF('Data for submission '!N25="","No Data",IF('Data for submission '!N25<0,"Error","OK")) -> OK | O26: =IF('Data for submission '!O25="","No Data",IF('Data for submission '!O25<0,"Error","OK")) -> OK | P26: =IF('Data for submission '!P25="","No Data",IF('Data for submission '!P25<0,"Error","OK")) -> OK | Q26: =IF('Data for submission '!Q25="","No Data",IF('Data for submission '!Q25<0,"Error","OK")) -> OK | S26: Band 8a | T26: Non Clinical
C27: 10 | D27: Band 8B | E27: Headcount | F27: =IF('Data for submission '!F26="","No Data",IF('Data for submission '!F26<0,"Error","OK")) -> OK | G27: =IF('Data for submission '!G26="","No Data",IF('Data for submission '!G26<0,"Error","OK")) -> OK | H27: =IF('Data for submission '!H26="","No Data",IF('Data for submission '!H26<0,"Error","OK")) -> OK | I27: =IF('Data for submission '!I26="","No Data",IF('Data for submission '!I26<0,"Error","OK")) -> OK | J27: =IF('Data for submission '!J26="","No Data",IF('Data for submission '!J26<0,"Error","OK")) -> OK | K27: =IF('Data for submission '!K26="","No Data",IF('Data for submission '!K26<0,"Error","OK")) -> OK | L27: =IF('Data for submission '!L26="","No Data",IF('Data for submission '!L26<0,"Error","OK")) -> OK | M27: =IF('Data for submission '!M26="","No Data",IF('Data for submission '!M26<0,"Error","OK")) -> OK | N27: =IF('Data for submission '!N26="","No Data",IF('Data for submission '!N26<0,"Error","OK")) -> OK | O27: =IF('Data for submission '!O26="","No Data",IF('Data for submission '!O26<0,"Error","OK")) -> OK | P27: =IF('Data for submission '!P26="","No Data",IF('Data for submission '!P26<0,"Error","OK")) -> OK | Q27: =IF('Data for submission '!Q26="","No Data",IF('Data for submission '!Q26<0,"Error","OK")) -> OK | S27: Band 8b | T27: Non Clinical
C28: 11 | D28: Band 8C | E28: Headcount | F28: =IF('Data for submission '!F27="","No Data",IF('Data for submission '!F27<0,"Error","OK")) -> OK | G28: =IF('Data for submission '!G27="","No Data",IF('Data for submission '!G27<0,"Error","OK")) -> OK | H28: =IF('Data for submission '!H27="","No Data",IF('Data for submission '!H27<0,"Error","OK")) -> OK | I28: =IF('Data for submission '!I27="","No Data",IF('Data for submission '!I27<0,"Error","OK")) -> OK | J28: =IF('Data for submission '!J27="","No Data",IF('Data for submission '!J27<0,"Error","OK")) -> OK | K28: =IF('Data for submission '!K27="","No Data",IF('Data for submission '!K27<0,"Error","OK")) -> OK | L28: =IF('Data for submission '!L27="","No Data",IF('Data for submission '!L27<0,"Error","OK")) -> OK | M28: =IF('Data for submission '!M27="","No Data",IF('Data for submission '!M27<0,"Error","OK")) -> OK | N28: =IF('Data for submission '!N27="","No Data",IF('Data for submission '!N27<0,"Error","OK")) -> OK | O28: =IF('Data for submission '!O27="","No Data",IF('Data for submission '!O27<0,"Error","OK")) -> OK | P28: =IF('Data for submission '!P27="","No Data",IF('Data for submission '!P27<0,"Error","OK")) -> OK | Q28: =IF('Data for submission '!Q27="","No Data",IF('Data for submission '!Q27<0,"Error","OK")) -> OK | S28: Band 8c | T28: Non Clinical
C29: 12 | D29: Band 8D | E29: Headcount | F29: =IF('Data for submission '!F28="","No Data",IF('Data for submission '!F28<0,"Error","OK")) -> OK | G29: =IF('Data for submission '!G28="","No Data",IF('Data for submission '!G28<0,"Error","OK")) -> OK | H29: =IF('Data for submission '!H28="","No Data",IF('Data for submission '!H28<0,"Error","OK")) -> OK | I29: =IF('Data for submission '!I28="","No Data",IF('Data for submission '!I28<0,"Error","OK")) -> OK | J29: =IF('Data for submission '!J28="","No Data",IF('Data for submission '!J28<0,"Error","OK")) -> OK | K29: =IF('Data for submission '!K28="","No Data",IF('Data for submission '!K28<0,"Error","OK")) -> OK | L29: =IF('Data for submission '!L28="","No Data",IF('Data for submission '!L28<0,"Error","OK")) -> OK | M29: =IF('Data for submission '!M28="","No Data",IF('Data for submission '!M28<0,"Error","OK")) -> OK | N29: =IF('Data for submission '!N28="","No Data",IF('Data for submission '!N28<0,"Error","OK")) -> OK | O29: =IF('Data for submission '!O28="","No Data",IF('Data for submission '!O28<0,"Error","OK")) -> OK | P29: =IF('Data for submission '!P28="","No Data",IF('Data for submission '!P28<0,"Error","OK")) -> OK | Q29: =IF('Data for submission '!Q28="","No Data",IF('Data for submission '!Q28<0,"Error","OK")) -> OK | S29: Band 8d | T29: Non Clinical
C30: 13 | D30: Band 9 | E30: Headcount | F30: =IF('Data for submission '!F29="","No Data",IF('Data for submission '!F29<0,"Error","OK")) -> OK | G30: =IF('Data for submission '!G29="","No Data",IF('Data for submission '!G29<0,"Error","OK")) -> OK | H30: =IF('Data for submission '!H29="","No Data",IF('Data for submission '!H29<0,"Error","OK")) -> OK | I30: =IF('Data for submission '!I29="","No Data",IF('Data for submission '!I29<0,"Error","OK")) -> OK | J30: =IF('Data for submission '!J29="","No Data",IF('Data for submission '!J29<0,"Error","OK")) -> OK | K30: =IF('Data for submission '!K29="","No Data",IF('Data for submission '!K29<0,"Error","OK")) -> OK | L30: =IF('Data for submission '!L29="","No Data",IF('Data for submission '!L29<0,"Error","OK")) -> OK | M30: =IF('Data for submission '!M29="","No Data",IF('Data for submission '!M29<0,"Error","OK")) -> OK | N30: =IF('Data for submission '!N29="","No Data",IF('Data for submission '!N29<0,"Error","OK")) -> OK | O30: =IF('Data for submission '!O29="","No Data",IF('Data for submission '!O29<0,"Error","OK")) -> OK | P30: =IF('Data for submission '!P29="","No Data",IF('Data for submission '!P29<0,"Error","OK")) -> OK | Q30: =IF('Data for submission '!Q29="","No Data",IF('Data for submission '!Q29<0,"Error","OK")) -> OK | S30: Band 9 | T30: Non Clinical
C31: 14 | D31: VSM | E31: Headcount | F31: =IF('Data for submission '!F30="","No Data",IF('Data for submission '!F30<0,"Error","OK")) -> OK | G31: =IF('Data for submission '!G30="","No Data",IF('Data for submission '!G30<0,"Error","OK")) -> OK | H31: =IF('Data for submission '!H30="","No Data",IF('Data for submission '!H30<0,"Error","OK")) -> OK | I31: =IF('Data for submission '!I30="","No Data",IF('Data for submission '!I30<0,"Error","OK")) -> OK | J31: =IF('Data for submission '!J30="","No Data",IF('Data for submission '!J30<0,"Error","OK")) -> OK | K31: =IF('Data for submission '!K30="","No Data",IF('Data for submission '!K30<0,"Error","OK")) -> OK | L31: =IF('Data for submission '!L30="","No Data",IF('Data for submission '!L30<0,"Error","OK")) -> OK | M31: =IF('Data for submission '!M30="","No Data",IF('Data for submission '!M30<0,"Error","OK")) -> OK | N31: =IF('Data for submission '!N30="","No Data",IF('Data for submission '!N30<0,"Error","OK")) -> OK | O31: =IF('Data for submission '!O30="","No Data",IF('Data for submission '!O30<0,"Error","OK")) -> OK | P31: =IF('Data for submission '!P30="","No Data",IF('Data for submission '!P30<0,"Error","OK")) -> OK | Q31: =IF('Data for submission '!Q30="","No Data",IF('Data for submission '!Q30<0,"Error","OK")) -> OK | S31: VSM | T31: Non Clinical
D32: 1b) Clinical workforce
D33: of which Non Medical
C34: 15 | D34: Under Band 1 | E34: Headcount | F34: =IF('Data for submission '!F33="","No Data",IF('Data for submission '!F33<0,"Error","OK")) -> OK | G34: =IF('Data for submission '!G33="","No Data",IF('Data for submission '!G33<0,"Error","OK")) -> OK | H34: =IF('Data for submission '!H33="","No Data",IF('Data for submission '!H33<0,"Error","OK")) -> OK | I34: =IF('Data for submission '!I33="","No Data",IF('Data for submission '!I33<0,"Error","OK")) -> OK | J34: =IF('Data for submission '!J33="","No Data",IF('Data for submission '!J33<0,"Error","OK")) -> OK | K34: =IF('Data for submission '!K33="","No Data",IF('Data for submission '!K33<0,"Error","OK")) -> OK | L34: =IF('Data for submission '!L33="","No Data",IF('Data for submission '!L33<0,"Error","OK")) -> OK | M34: =IF('Data for submission '!M33="","No Data",IF('Data for submission '!M33<0,"Error","OK")) -> OK | N34: =IF('Data for submission '!N33="","No Data",IF('Data for submission '!N33<0,"Error","OK")) -> OK | O34: =IF('Data for submission '!O33="","No Data",IF('Data for submission '!O33<0,"Error","OK")) -> OK | P34: =IF('Data for submission '!P33="","No Data",IF('Data for submission '!P33<0,"Error","OK")) -> OK | Q34: =IF('Data for submission '!Q33="","No Data",IF('Data for submission '!Q33<0,"Error","OK")) -> OK | S34: < Band 1 (i.e. Apprentices) | T34: Clinical
C35: 16 | D35: Band 1 | E35: Headcount | F35: =IF('Data for submission '!F34="","No Data",IF('Data for submission '!F34<0,"Error","OK")) -> OK | G35: =IF('Data for submission '!G34="","No Data",IF('Data for submission '!G34<0,"Error","OK")) -> OK | H35: =IF('Data for submission '!H34="","No Data",IF('Data for submission '!H34<0,"Error","OK")) -> OK | I35: =IF('Data for submission '!I34="","No Data",IF('Data for submission '!I34<0,"Error","OK")) -> OK | J35: =IF('Data for submission '!J34="","No Data",IF('Data for submission '!J34<0,"Error","OK")) -> OK | K35: =IF('Data for submission '!K34="","No Data",IF('Data for submission '!K34<0,"Error","OK")) -> OK | L35: =IF('Data for submission '!L34="","No Data",IF('Data for submission '!L34<0,"Error","OK")) -> OK | M35: =IF('Data for submission '!M34="","No Data",IF('Data for submission '!M34<0,"Error","OK")) -> OK | N35: =IF('Data for submission '!N34="","No Data",IF('Data for submission '!N34<0,"Error","OK")) -> OK | O35: =IF('Data for submission '!O34="","No Data",IF('Data for submission '!O34<0,"Error","OK")) -> OK | P35: =IF('Data for submission '!P34="","No Data",IF('Data for submission '!P34<0,"Error","OK")) -> OK | Q35: =IF('Data for submission '!Q34="","No Data",IF('Data for submission '!Q34<0,"Error","OK")) -> OK | S35: Band 1 | T35: Clinical
C36: 17 | D36: Band 2 | E36: Headcount | F36: =IF('Data for submission '!F35="","No Data",IF('Data for submission '!F35<0,"Error","OK")) -> OK | G36: =IF('Data for submission '!G35="","No Data",IF('Data for submission '!G35<0,"Error","OK")) -> OK | H36: =IF('Data for submission '!H35="","No Data",IF('Data for submission '!H35<0,"Error","OK")) -> OK | I36: =IF('Data for submission '!I35="","No Data",IF('Data for submission '!I35<0,"Error","OK")) -> OK | J36: =IF('Data for submission '!J35="","No Data",IF('Data for submission '!J35<0,"Error","OK")) -> OK | K36: =IF('Data for submission '!K35="","No Data",IF('Data for submission '!K35<0,"Error","OK")) -> OK | L36: =IF('Data for submission '!L35="","No Data",IF('Data for submission '!L35<0,"Error","OK")) -> OK | M36: =IF('Data for submission '!M35="","No Data",IF('Data for submission '!M35<0,"Error","OK")) -> OK | N36: =IF('Data for submission '!N35="","No Data",IF('Data for submission '!N35<0,"Error","OK")) -> OK | O36: =IF('Data for submission '!O35="","No Data",IF('Data for submission '!O35<0,"Error","OK")) -> OK | P36: =IF('Data for submission '!P35="","No Data",IF('Data for submission '!P35<0,"Error","OK")) -> OK | Q36: =IF('Data for submission '!Q35="","No Data",IF('Data for submission '!Q35<0,"Error","OK")) -> OK | S36: Band 2 | T36: Clinical
C37: 18 | D37: Band 3 | E37: Headcount | F37: =IF('Data for submission '!F36="","No Data",IF('Data for submission '!F36<0,"Error","OK")) -> OK | G37: =IF('Data for submission '!G36="","No Data",IF('Data for submission '!G36<0,"Error","OK")) -> OK | H37: =IF('Data for submission '!H36="","No Data",IF('Data for submission '!H36<0,"Error","OK")) -> OK | I37: =IF('Data for submission '!I36="","No Data",IF('Data for submission '!I36<0,"Error","OK")) -> OK | J37: =IF('Data for submission '!J36="","No Data",IF('Data for submission '!J36<0,"Error","OK")) -> OK | K37: =IF('Data for submission '!K36="","No Data",IF('Data for submission '!K36<0,"Error","OK")) -> OK | L37: =IF('Data for submission '!L36="","No Data",IF('Data for submission '!L36<0,"Error","OK")) -> OK | M37: =IF('Data for submission '!M36="","No Data",IF('Data for submission '!M36<0,"Error","OK")) -> OK | N37: =IF('Data for submission '!N36="","No Data",IF('Data for submission '!N36<0,"Error","OK")) -> OK | O37: =IF('Data for submission '!O36="","No Data",IF('Data for submission '!O36<0,"Error","OK")) -> OK | P37: =IF('Data for submission '!P36="","No Data",IF('Data for submission '!P36<0,"Error","OK")) -> OK | Q37: =IF('Data for submission '!Q36="","No Data",IF('Data for submission '!Q36<0,"Error","OK")) -> OK | S37: Band 3 | T37: Clinical
C38: 19 | D38: Band 4 | E38: Headcount | F38: =IF('Data for submission '!F37="","No Data",IF('Data for submission '!F37<0,"Error","OK")) -> OK | G38: =IF('Data for submission '!G37="","No Data",IF('Data for submission '!G37<0,"Error","OK")) -> OK | H38: =IF('Data for submission '!H37="","No Data",IF('Data for submission '!H37<0,"Error","OK")) -> OK | I38: =IF('Data for submission '!I37="","No Data",IF('Data for submission '!I37<0,"Error","OK")) -> OK | J38: =IF('Data for submission '!J37="","No Data",IF('Data for submission '!J37<0,"Error","OK")) -> OK | K38: =IF('Data for submission '!K37="","No Data",IF('Data for submission '!K37<0,"Error","OK")) -> OK | L38: =IF('Data for submission '!L37="","No Data",IF('Data for submission '!L37<0,"Error","OK")) -> OK | M38: =IF('Data for submission '!M37="","No Data",IF('Data for submission '!M37<0,"Error","OK")) -> OK | N38: =IF('Data for submission '!N37="","No Data",IF('Data for submission '!N37<0,"Error","OK")) -> OK | O38: =IF('Data for submission '!O37="","No Data",IF('Data for submission '!O37<0,"Error","OK")) -> OK | P38: =IF('Data for submission '!P37="","No Data",IF('Data for submission '!P37<0,"Error","OK")) -> OK | Q38: =IF('Data for submission '!Q37="","No Data",IF('Data for submission '!Q37<0,"Error","OK")) -> OK | S38: Band 4 | T38: Clinical
C39: 20 | D39: Band 5 | E39: Headcount | F39: =IF('Data for submission '!F38="","No Data",IF('Data for submission '!F38<0,"Error","OK")) -> OK | G39: =IF('Data for submission '!G38="","No Data",IF('Data for submission '!G38<0,"Error","OK")) -> OK | H39: =IF('Data for submission '!H38="","No Data",IF('Data for submission '!H38<0,"Error","OK")) -> OK | I39: =IF('Data for submission '!I38="","No Data",IF('Data for submission '!I38<0,"Error","OK")) -> OK | J39: =IF('Data for submission '!J38="","No Data",IF('Data for submission '!J38<0,"Error","OK")) -> OK | K39: =IF('Data for submission '!K38="","No Data",IF('Data for submission '!K38<0,"Error","OK")) -> OK | L39: =IF('Data for submission '!L38="","No Data",IF('Data for submission '!L38<0,"Error","OK")) -> OK | M39: =IF('Data for submission '!M38="","No Data",IF('Data for submission '!M38<0,"Error","OK")) -> OK | N39: =IF('Data for submission '!N38="","No Data",IF('Data for submission '!N38<0,"Error","OK")) -> OK | O39: =IF('Data for submission '!O38="","No Data",IF('Data for submission '!O38<0,"Error","OK")) -> OK | P39: =IF('Data for submission '!P38="","No Data",IF('Data for submission '!P38<0,"Error","OK")) -> OK | Q39: =IF('Data for submission '!Q38="","No Data",IF('Data for submission '!Q38<0,"Error","OK")) -> OK | S39: Band 5 | T39: Clinical
C40: 21 | D40: Band 6 | E40: Headcount | F40: =IF('Data for submission '!F39="","No Data",IF('Data for submission '!F39<0,"Error","OK")) -> OK | G40: =IF('Data for submission '!G39="","No Data",IF('Data for submission '!G39<0,"Error","OK")) -> OK | H40: =IF('Data for submission '!H39="","No Data",IF('Data for submission '!H39<0,"Error","OK")) -> OK | I40: =IF('Data for submission '!I39="","No Data",IF('Data for submission '!I39<0,"Error","OK")) -> OK | J40: =IF('Data for submission '!J39="","No Data",IF('Data for submission '!J39<0,"Error","OK")) -> OK | K40: =IF('Data for submission '!K39="","No Data",IF('Data for submission '!K39<0,"Error","OK")) -> OK | L40: =IF('Data for submission '!L39="","No Data",IF('Data for submission '!L39<0,"Error","OK")) -> OK | M40: =IF('Data for submission '!M39="","No Data",IF('Data for submission '!M39<0,"Error","OK")) -> OK | N40: =IF('Data for submission '!N39="","No Data",IF('Data for submission '!N39<0,"Error","OK")) -> OK | O40: =IF('Data for submission '!O39="","No Data",IF('Data for submission '!O39<0,"Error","OK")) -> OK | P40: =IF('Data for submission '!P39="","No Data",IF('Data for submission '!P39<0,"Error","OK")) -> OK | Q40: =IF('Data for submission '!Q39="","No Data",IF('Data for submission '!Q39<0,"Error","OK")) -> OK | S40: Band 6 | T40: Clinical
C41: 22 | D41: Band 7 | E41: Headcount | F41: =IF('Data for submission '!F40="","No Data",IF('Data for submission '!F40<0,"Error","OK")) -> OK | G41: =IF('Data for submission '!G40="","No Data",IF('Data for submission '!G40<0,"Error","OK")) -> OK | H41: =IF('Data for submission '!H40="","No Data",IF('Data for submission '!H40<0,"Error","OK")) -> OK | I41: =IF('Data for submission '!I40="","No Data",IF('Data for submission '!I40<0,"Error","OK")) -> OK | J41: =IF('Data for submission '!J40="","No Data",IF('Data for submission '!J40<0,"Error","OK")) -> OK | K41: =IF('Data for submission '!K40="","No Data",IF('Data for submission '!K40<0,"Error","OK")) -> OK | L41: =IF('Data for submission '!L40="","No Data",IF('Data for submission '!L40<0,"Error","OK")) -> OK | M41: =IF('Data for submission '!M40="","No Data",IF('Data for submission '!M40<0,"Error","OK")) -> OK | N41: =IF('Data for submission '!N40="","No Data",IF('Data for submission '!N40<0,"Error","OK")) -> OK | O41: =IF('Data for submission '!O40="","No Data",IF('Data for submission '!O40<0,"Error","OK")) -> OK | P41: =IF('Data for submission '!P40="","No Data",IF('Data for submission '!P40<0,"Error","OK")) -> OK | Q41: =IF('Data for submission '!Q40="","No Data",IF('Data for submission '!Q40<0,"Error","OK")) -> OK | S41: Band 7 | T41: Clinical
C42: 23 | D42: Band 8A | E42: Headcount | F42: =IF('Data for submission '!F41="","No Data",IF('Data for submission '!F41<0,"Error","OK")) -> OK | G42: =IF('Data for submission '!G41="","No Data",IF('Data for submission '!G41<0,"Error","OK")) -> OK | H42: =IF('Data for submission '!H41="","No Data",IF('Data for submission '!H41<0,"Error","OK")) -> OK | I42: =IF('Data for submission '!I41="","No Data",IF('Data for submission '!I41<0,"Error","OK")) -> OK | J42: =IF('Data for submission '!J41="","No Data",IF('Data for submission '!J41<0,"Error","OK")) -> OK | K42: =IF('Data for submission '!K41="","No Data",IF('Data for submission '!K41<0,"Error","OK")) -> OK | L42: =IF('Data for submission '!L41="","No Data",IF('Data for submission '!L41<0,"Error","OK")) -> OK | M42: =IF('Data for submission '!M41="","No Data",IF('Data for submission '!M41<0,"Error","OK")) -> OK | N42: =IF('Data for submission '!N41="","No Data",IF('Data for submission '!N41<0,"Error","OK")) -> OK | O42: =IF('Data for submission '!O41="","No Data",IF('Data for submission '!O41<0,"Error","OK")) -> OK | P42: =IF('Data for submission '!P41="","No Data",IF('Data for submission '!P41<0,"Error","OK")) -> OK | Q42: =IF('Data for submission '!Q41="","No Data",IF('Data for submission '!Q41<0,"Error","OK")) -> OK | S42: Band 8a | T42: Clinical
C43: 24 | D43: Band 8B | E43: Headcount | F43: =IF('Data for submission '!F42="","No Data",IF('Data for submission '!F42<0,"Error","OK")) -> OK | G43: =IF('Data for submission '!G42="","No Data",IF('Data for submission '!G42<0,"Error","OK")) -> OK | H43: =IF('Data for submission '!H42="","No Data",IF('Data for submission '!H42<0,"Error","OK")) -> OK | I43: =IF('Data for submission '!I42="","No Data",IF('Data for submission '!I42<0,"Error","OK")) -> OK | J43: =IF('Data for submission '!J42="","No Data",IF('Data for submission '!J42<0,"Error","OK")) -> OK | K43: =IF('Data for submission '!K42="","No Data",IF('Data for submission '!K42<0,"Error","OK")) -> OK | L43: =IF('Data for submission '!L42="","No Data",IF('Data for submission '!L42<0,"Error","OK")) -> OK | M43: =IF('Data for submission '!M42="","No Data",IF('Data for submission '!M42<0,"Error","OK")) -> OK | N43: =IF('Data for submission '!N42="","No Data",IF('Data for submission '!N42<0,"Error","OK")) -> OK | O43: =IF('Data for submission '!O42="","No Data",IF('Data for submission '!O42<0,"Error","OK")) -> OK | P43: =IF('Data for submission '!P42="","No Data",IF('Data for submission '!P42<0,"Error","OK")) -> OK | Q43: =IF('Data for submission '!Q42="","No Data",IF('Data for submission '!Q42<0,"Error","OK")) -> OK | S43: Band 8b | T43: Clinical
C44: 25 | D44: Band 8C | E44: Headcount | F44: =IF('Data for submission '!F43="","No Data",IF('Data for submission '!F43<0,"Error","OK")) -> OK | G44: =IF('Data for submission '!G43="","No Data",IF('Data for submission '!G43<0,"Error","OK")) -> OK | H44: =IF('Data for submission '!H43="","No Data",IF('Data for submission '!H43<0,"Error","OK")) -> OK | I44: =IF('Data for submission '!I43="","No Data",IF('Data for submission '!I43<0,"Error","OK")) -> OK | J44: =IF('Data for submission '!J43="","No Data",IF('Data for submission '!J43<0,"Error","OK")) -> OK | K44: =IF('Data for submission '!K43="","No Data",IF('Data for submission '!K43<0,"Error","OK")) -> OK | L44: =IF('Data for submission '!L43="","No Data",IF('Data for submission '!L43<0,"Error","OK")) -> OK | M44: =IF('Data for submission '!M43="","No Data",IF('Data for submission '!M43<0,"Error","OK")) -> OK | N44: =IF('Data for submission '!N43="","No Data",IF('Data for submission '!N43<0,"Error","OK")) -> OK | O44: =IF('Data for submission '!O43="","No Data",IF('Data for submission '!O43<0,"Error","OK")) -> OK | P44: =IF('Data for submission '!P43="","No Data",IF('Data for submission '!P43<0,"Error","OK")) -> OK | Q44: =IF('Data for submission '!Q43="","No Data",IF('Data for submission '!Q43<0,"Error","OK")) -> OK | S44: Band 8c | T44: Clinical
C45: 26 | D45: Band 8D | E45: Headcount | F45: =IF('Data for submission '!F44="","No Data",IF('Data for submission '!F44<0,"Error","OK")) -> OK | G45: =IF('Data for submission '!G44="","No Data",IF('Data for submission '!G44<0,"Error","OK")) -> OK | H45: =IF('Data for submission '!H44="","No Data",IF('Data for submission '!H44<0,"Error","OK")) -> OK | I45: =IF('Data for submission '!I44="","No Data",IF('Data for submission '!I44<0,"Error","OK")) -> OK | J45: =IF('Data for submission '!J44="","No Data",IF('Data for submission '!J44<0,"Error","OK")) -> OK | K45: =IF('Data for submission '!K44="","No Data",IF('Data for submission '!K44<0,"Error","OK")) -> OK | L45: =IF('Data for submission '!L44="","No Data",IF('Data for submission '!L44<0,"Error","OK")) -> OK | M45: =IF('Data for submission '!M44="","No Data",IF('Data for submission '!M44<0,"Error","OK")) -> OK | N45: =IF('Data for submission '!N44="","No Data",IF('Data for submission '!N44<0,"Error","OK")) -> OK | O45: =IF('Data for submission '!O44="","No Data",IF('Data for submission '!O44<0,"Error","OK")) -> OK | P45: =IF('Data for submission '!P44="","No Data",IF('Data for submission '!P44<0,"Error","OK")) -> OK | Q45: =IF('Data for submission '!Q44="","No Data",IF('Data for submission '!Q44<0,"Error","OK")) -> OK | S45: Band 8d | T45: Clinical
C46: 27 | D46: Band 9 | E46: Headcount | F46: =IF('Data for submission '!F45="","No Data",IF('Data for submission '!F45<0,"Error","OK")) -> OK | G46: =IF('Data for submission '!G45="","No Data",IF('Data for submission '!G45<0,"Error","OK")) -> OK | H46: =IF('Data for submission '!H45="","No Data",IF('Data for submission '!H45<0,"Error","OK")) -> OK | I46: =IF('Data for submission '!I45="","No Data",IF('Data for submission '!I45<0,"Error","OK")) -> OK | J46: =IF('Data for submission '!J45="","No Data",IF('Data for submission '!J45<0,"Error","OK")) -> OK | K46: =IF('Data for submission '!K45="","No Data",IF('Data for submission '!K45<0,"Error","OK")) -> OK | L46: =IF('Data for submission '!L45="","No Data",IF('Data for submission '!L45<0,"Error","OK")) -> OK | M46: =IF('Data for submission '!M45="","No Data",IF('Data for submission '!M45<0,"Error","OK")) -> OK | N46: =IF('Data for submission '!N45="","No Data",IF('Data for submission '!N45<0,"Error","OK")) -> OK | O46: =IF('Data for submission '!O45="","No Data",IF('Data for submission '!O45<0,"Error","OK")) -> OK | P46: =IF('Data for submission '!P45="","No Data",IF('Data for submission '!P45<0,"Error","OK")) -> OK | Q46: =IF('Data for submission '!Q45="","No Data",IF('Data for submission '!Q45<0,"Error","OK")) -> OK | S46: Band 9 | T46: Clinical
C47: 28 | D47: VSM | E47: Headcount | F47: =IF('Data for submission '!F46="","No Data",IF('Data for submission '!F46<0,"Error","OK")) -> OK | G47: =IF('Data for submission '!G46="","No Data",IF('Data for submission '!G46<0,"Error","OK")) -> OK | H47: =IF('Data for submission '!H46="","No Data",IF('Data for submission '!H46<0,"Error","OK")) -> OK | I47: =IF('Data for submission '!I46="","No Data",IF('Data for submission '!I46<0,"Error","OK")) -> OK | J47: =IF('Data for submission '!J46="","No Data",IF('Data for submission '!J46<0,"Error","OK")) -> OK | K47: =IF('Data for submission '!K46="","No Data",IF('Data for submission '!K46<0,"Error","OK")) -> OK | L47: =IF('Data for submission '!L46="","No Data",IF('Data for submission '!L46<0,"Error","OK")) -> OK | M47: =IF('Data for submission '!M46="","No Data",IF('Data for submission '!M46<0,"Error","OK")) -> OK | N47: =IF('Data for submission '!N46="","No Data",IF('Data for submission '!N46<0,"Error","OK")) -> OK | O47: =IF('Data for submission '!O46="","No Data",IF('Data for submission '!O46<0,"Error","OK")) -> OK | P47: =IF('Data for submission '!P46="","No Data",IF('Data for submission '!P46<0,"Error","OK")) -> OK | Q47: =IF('Data for submission '!Q46="","No Data",IF('Data for submission '!Q46<0,"Error","OK")) -> OK | S47: VSM | T47: Clinical
D48: Of which Medical & Dental
C49: 29 | D49: Consultants | E49: Headcount | F49: =IF('Data for submission '!F48="","No Data",IF('Data for submission '!F48<0,"Error","OK")) -> OK | G49: =IF('Data for submission '!G48="","No Data",IF('Data for submission '!G48<0,"Error","OK")) -> OK | H49: =IF('Data for submission '!H48="","No Data",IF('Data for submission '!H48<0,"Error","OK")) -> OK | I49: =IF('Data for submission '!I48="","No Data",IF('Data for submission '!I48<0,"Error","OK")) -> OK | J49: =IF('Data for submission '!J48="","No Data",IF('Data for submission '!J48<0,"Error","OK")) -> OK | K49: =IF('Data for submission '!K48="","No Data",IF('Data for submission '!K48<0,"Error","OK")) -> OK | L49: =IF('Data for submission '!L48="","No Data",IF('Data for submission '!L48<0,"Error","OK")) -> OK | M49: =IF('Data for submission '!M48="","No Data",IF('Data for submission '!M48<0,"Error","OK")) -> OK | N49: =IF('Data for submission '!N48="","No Data",IF('Data for submission '!N48<0,"Error","OK")) -> OK | O49: =IF('Data for submission '!O48="","No Data",IF('Data for submission '!O48<0,"Error","OK")) -> OK | P49: =IF('Data for submission '!P48="","No Data",IF('Data for submission '!P48<0,"Error","OK")) -> OK | Q49: =IF('Data for submission '!Q48="","No Data",IF('Data for submission '!Q48<0,"Error","OK")) -> OK | S49: Medical & Dental Consultant | T49: Clinical
C50: 30 | D50: of which Senior medical manager | E50: Headcount
C51: 31 | D51: Non-consultant career grade | E51: Headcount | F51: =IF('Data for submission '!F50="","No Data",IF('Data for submission '!F50<0,"Error","OK")) -> OK | G51: =IF('Data for submission '!G50="","No Data",IF('Data for submission '!G50<0,"Error","OK")) -> OK | H51: =IF('Data for submission '!H50="","No Data",IF('Data for submission '!H50<0,"Error","OK")) -> OK | I51: =IF('Data for submission '!I50="","No Data",IF('Data for submission '!I50<0,"Error","OK")) -> OK | J51: =IF('Data for submission '!J50="","No Data",IF('Data for submission '!J50<0,"Error","OK")) -> OK | K51: =IF('Data for submission '!K50="","No Data",IF('Data for submission '!K50<0,"Error","OK")) -> OK | L51: =IF('Data for submission '!L50="","No Data",IF('Data for submission '!L50<0,"Error","OK")) -> OK | M51: =IF('Data for submission '!M50="","No Data",IF('Data for submission '!M50<0,"Error","OK")) -> OK | N51: =IF('Data for submission '!N50="","No Data",IF('Data for submission '!N50<0,"Error","OK")) -> OK | O51: =IF('Data for submission '!O50="","No Data",IF('Data for submission '!O50<0,"Error","OK")) -> OK | P51: =IF('Data for submission '!P50="","No Data",IF('Data for submission '!P50<0,"Error","OK")) -> OK | Q51: =IF('Data for submission '!Q50="","No Data",IF('Data for submission '!Q50<0,"Error","OK")) -> OK | S51: Medical & Dental Non-consultant career grade | T51: Clinical
C52: 32 | D52: Trainee grades | E52: Headcount | F52: =IF('Data for submission '!F51="","No Data",IF('Data for submission '!F51<0,"Error","OK")) -> OK | G52: =IF('Data for submission '!G51="","No Data",IF('Data for submission '!G51<0,"Error","OK")) -> OK | H52: =IF('Data for submission '!H51="","No Data",IF('Data for submission '!H51<0,"Error","OK")) -> OK | I52: =IF('Data for submission '!I51="","No Data",IF('Data for submission '!I51<0,"Error","OK")) -> OK | J52: =IF('Data for submission '!J51="","No Data",IF('Data for submission '!J51<0,"Error","OK")) -> OK | K52: =IF('Data for submission '!K51="","No Data",IF('Data for submission '!K51<0,"Error","OK")) -> OK | L52: =IF('Data for submission '!L51="","No Data",IF('Data for submission '!L51<0,"Error","OK")) -> OK | M52: =IF('Data for submission '!M51="","No Data",IF('Data for submission '!M51<0,"Error","OK")) -> OK | N52: =IF('Data for submission '!N51="","No Data",IF('Data for submission '!N51<0,"Error","OK")) -> OK | O52: =IF('Data for submission '!O51="","No Data",IF('Data for submission '!O51<0,"Error","OK")) -> OK | P52: =IF('Data for submission '!P51="","No Data",IF('Data for submission '!P51<0,"Error","OK")) -> OK | Q52: =IF('Data for submission '!Q51="","No Data",IF('Data for submission '!Q51<0,"Error","OK")) -> OK | S52: Medical & Dental Trainee grades | T52: Clinical
C53: 33 | D53: Other | E53: Headcount | F53: =IF('Data for submission '!F52="","No Data",IF('Data for submission '!F52<0,"Error","OK")) -> OK | G53: =IF('Data for submission '!G52="","No Data",IF('Data for submission '!G52<0,"Error","OK")) -> OK | H53: =IF('Data for submission '!H52="","No Data",IF('Data for submission '!H52<0,"Error","OK")) -> OK | I53: =IF('Data for submission '!I52="","No Data",IF('Data for submission '!I52<0,"Error","OK")) -> OK | J53: =IF('Data for submission '!J52="","No Data",IF('Data for submission '!J52<0,"Error","OK")) -> OK | K53: =IF('Data for submission '!K52="","No Data",IF('Data for submission '!K52<0,"Error","OK")) -> OK | L53: =IF('Data for submission '!L52="","No Data",IF('Data for submission '!L52<0,"Error","OK")) -> OK | M53: =IF('Data for submission '!M52="","No Data",IF('Data for submission '!M52<0,"Error","OK")) -> OK | N53: =IF('Data for submission '!N52="","No Data",IF('Data for submission '!N52<0,"Error","OK")) -> OK | O53: =IF('Data for submission '!O52="","No Data",IF('Data for submission '!O52<0,"Error","OK")) -> OK | P53: =IF('Data for submission '!P52="","No Data",IF('Data for submission '!P52<0,"Error","OK")) -> OK | Q53: =IF('Data for submission '!Q52="","No Data",IF('Data for submission '!Q52<0,"Error","OK")) -> OK | S53: Medical & Dental Other | T53: Clinical
A54: 2 | B54: Relative likelihood of staff being appointed from shortlisting across all posts | C54: 34 | D54: Number of shortlisted applicants: | E54: Headcount | G54: =IF('Data for submission '!G53="","No Data",IF('Data for submission '!G53<0,"Error","OK")) -> OK | I54: =IF('Data for submission '!I53="","No Data",IF('Data for submission '!I53<0,"Error","OK")) -> OK | K54: =IF('Data for submission '!K53="","No Data",IF('Data for submission '!K53<0,"Error","OK")) -> OK | M54: =IF('Data for submission '!M53="","No Data",IF('Data for submission '!M53<'Data for submission '!M54,"Error","OK")) -> OK | O54: =IF('Data for submission '!O53="","No Data",IF('Data for submission '!O53<'Data for submission '!O54,"Error","OK")) -> OK | Q54: =IF('Data for submission '!Q53="","No Data",IF('Data for submission '!Q53<0,"Error","OK")) -> OK | W54: 2.552292524 | X54: 0.5559166561
C55: 35 | D55: Number appointed from shortlisting: | E55: Headcount | G55: =IF('Data for submission '!G54="","No Data",IF('Data for submission '!G54<0,"Error","OK")) -> OK | I55: =IF('Data for submission '!I54="","No Data",IF('Data for submission '!I54<0,"Error","OK")) -> OK | K55: =IF('Data for submission '!K54="","No Data",IF('Data for submission '!K54<0,"Error","OK")) -> OK | M55: =IF('Data for submission '!M54="","No data",IF('Data for submission '!M54>'Data for submission '!M53,"Error","OK")) -> OK | O55: =IF('Data for submission '!O54="","No data",IF('Data for submission '!O54>'Data for submission '!O53,"Error","OK")) -> OK | Q55: =IF('Data for submission '!Q54="","No Data",IF('Data for submission '!Q54<0,"Error","OK")) -> OK
C56: 36 | D56: Relative likelihood of shortlisting/appointed: | E56: Auto calculated | G56: =IFERROR(G55/G54,"") ->  | M56: =IFERROR(M55/M54,"") ->  | O56: =IFERROR(O55/O54,"") -> 
C57: 37 | D57: Relative likelihood of White staff being appointed from shortlisting compared to BME staff: | E57: Auto calculated | M57: =IFERROR(M56/O56,"") -> 
A58: 3 | B58: Relative likelihood of staff entering the formal disciplinary process, as measured by entry into a formal disciplinary investigation Note: This indicator will be based on data from a two year rolling average of the current year and the previous year | C58: 38 | D58: Number of staff in workforce: | E58: Headcount | G58: =IF('Data for submission '!G57="","No Data",IF('Data for submission '!G57<0,"Error","OK")) -> OK | I58: =IF('Data for submission '!I57="","No Data",IF('Data for submission '!I57<0,"Error","OK")) -> OK | K58: =IF('Data for submission '!K57="","No Data",IF('Data for submission '!K57<0,"Error","OK")) -> OK | M58: =IF('Data for submission '!M57="","No data",IF('Data for submission '!M57<'Data for submission '!M58,"Error","OK")) -> OK | O58: =IF('Data for submission '!O57="","No data",IF('Data for submission '!O57<'Data for submission '!O58,"Error","OK")) -> OK | Q58: =IF('Data for submission '!Q57="","No data",IF('Data for submission '!Q57<'Data for submission '!Q58,"Error","OK")) -> OK | W58: 4.315868004 | X58: 0
C59: 39 | D59: Number of staff entering the formal disciplinary process: | E59: Headcount | G59: =IF('Data for submission '!G58="","No Data",IF('Data for submission '!G58<0,"Error","OK")) -> OK | I59: =IF('Data for submission '!I58="","No Data",IF('Data for submission '!I58<0,"Error","OK")) -> OK | K59: =IF('Data for submission '!K58="","No Data",IF('Data for submission '!K58<0,"Error","OK")) -> OK | M59: =IF('Data for submission '!M58="","No Data",IF('Data for submission '!M58>'Data for submission '!M57,"Error","OK")) -> OK | O59: =IF('Data for submission '!O58="","No Data",IF('Data for submission '!O58>'Data for submission '!O57,"Error","OK")) -> OK | Q59: =IF('Data for submission '!Q58="","No Data",IF('Data for submission '!Q58>'Data for submission '!Q57,"Error","OK")) -> OK
C60: 40 | D60: Likelihood of staff entering the formal disciplinary process: | E60: Auto calculated
C61: 41 | D61: Relative likelihood of BME staff entering the formal disciplinary process compared to White staff: | E61: Auto calculated | O61: =IFERROR(O60/M60,"") -> 
A62: 4 | B62: Relative likelihood of staff accessing non-mandatory training and CPD | C62: 42 | D62: Number of staff in workforce: | E62: Headcount | G62: =IF('Data for submission '!G61="","No Data",IF('Data for submission '!G61<0,"Error","OK")) -> OK | I62: =IF('Data for submission '!I61="","No Data",IF('Data for submission '!I61<0,"Error","OK")) -> OK | K62: =IF('Data for submission '!K61="","No Data",IF('Data for submission '!K61<0,"Error","OK")) -> OK | M62: =IF('Data for submission '!M61="","No Data",IF('Data for submission '!M61<'Data for submission '!M62,"Error","OK")) -> OK | O62: =IF('Data for submission '!O61="","No Data",IF('Data for submission '!O61<'Data for submission '!O62,"Error","OK")) -> OK | Q62: =IF('Data for submission '!Q61="","No Data",IF('Data for submission '!Q61<'Data for submission '!Q62,"Error","OK")) -> OK | W62: 2.052158313 | X62: 0.1029898185
C63: 43 | D63: Number of staff accessing non-mandatory training and CPD: | E63: Headcount | G63: =IF('Data for submission '!G62="","No Data",IF('Data for submission '!G62<0,"Error","OK")) -> OK | I63: =IF('Data for submission '!I62="","No Data",IF('Data for submission '!I62<0,"Error","OK")) -> OK | K63: =IF('Data for submission '!K62="","No Data",IF('Data for submission '!K62<0,"Error","OK")) -> OK | M63: =IF('Data for submission '!M62="","No Data",IF('Data for submission '!M62>'Data for submission '!M61,"Error","OK")) -> OK | O63: =IF('Data for submission '!O62="","No Data",IF('Data for submission '!O62>'Data for submission '!O61,"Error","OK")) -> OK | Q63: =IF('Data for submission '!Q62="","No Data",IF('Data for submission '!Q62>'Data for submission '!Q61,"Error","OK")) -> OK
C64: 44 | D64: Likelihood of staff accessing non-mandatory training and CPD: | E64: Auto calculated
C65: 45 | D65: Relative likelihood of White staff accessing non-mandatory training and CPD compared to BME staff: | E65: Auto calculated
A66: 5 | B66: Percentage of staff experiencing harassment, bullying or abuse from patients, relatives or the public in last 12 months | C66: 46 | D66: % of staff experiencing harassment, bullying or abuse from patients, relatives or the public in last 12 months | E66: Percentage | G66: =IF('Data for submission '!G65="","No Data",IF('Data for submission '!G65<0,"Error","OK")) -> OK | I66: =IF('Data for submission '!I65="","No Data",IF('Data for submission '!I65<0,"Error","OK")) -> OK | L66: =IF('Data for submission '!M65="","No Data",IF('Data for submission '!M65<0,"Error","OK")) -> OK | N66: =IF('Data for submission '!O65="","No Data",IF('Data for submission '!O65<0,"Error","OK")) -> OK
A67: 6 | B67: Percentage of staff experiencing harassment, bullying or abuse from staff in last 12 months | C67: 47 | D67: % of staff experiencing harassment, bullying or abuse from staff in last 12 months | E67: Percentage | G67: =IF('Data for submission '!G66="","No Data",IF('Data for submission '!G66<0,"Error","OK")) -> OK | I67: =IF('Data for submission '!I66="","No Data",IF('Data for submission '!I66<0,"Error","OK")) -> OK | L67: =IF('Data for submission '!M66="","No Data",IF('Data for submission '!M66<0,"Error","OK")) -> OK | N67: =IF('Data for submission '!O66="","No Data",IF('Data for submission '!O66<0,"Error","OK")) -> OK
A68: 7 | B68: Percentage believing that trust provides equal opportunities for career progression or promotion | C68: 48 | D68: % staff believing that trust provides equal opportunities for career progression or promotion | E68: Percentage | G68: =IF('Data for submission '!G67="","No Data",IF('Data for submission '!G67<0,"Error","OK")) -> OK | I68: =IF('Data for submission '!I67="","No Data",IF('Data for submission '!I67<0,"Error","OK")) -> OK | L68: =IF('Data for submission '!M67="","No Data",IF('Data for submission '!M67<0,"Error","OK")) -> OK | N68: =IF('Data for submission '!O67="","No Data",IF('Data for submission '!O67<0,"Error","OK")) -> OK
A69: 8 | B69: In the last 12 months have you personally experienced discrimination at work from any of the following? b) Manager/team leader or other colleagues | C69: 49 | D69: % staff personally experienced discrimination at work from Manager/team leader or other colleague | E69: Percentage | G69: =IF('Data for submission '!G68="","No Data",IF('Data for submission '!G68<0,"Error","OK")) -> OK | I69: =IF('Data for submission '!I68="","No Data",IF('Data for submission '!I68<0,"Error","OK")) -> OK | L69: =IF('Data for submission '!M68="","No Data",IF('Data for submission '!M68<0,"Error","OK")) -> OK | N69: =IF('Data for submission '!O68="","No Data",IF('Data for submission '!O68<0,"Error","OK")) -> OK
A70: 9 | B70: Percentage difference between the organisations’ Board voting membership and its overall workforce Note: Only voting members of the Board should be included when considering this indicator | C70: 50 | D70: Total Board members | E70: Headcount | G70: =IF('Data for submission '!G69="","No Data",IF('Data for submission '!G69<'Data for submission '!G70,"Error","OK")) -> OK | I70: =IF('Data for submission '!I69="","No Data",IF('Data for submission '!I69<'Data for submission '!I70,"Error","OK")) -> OK | K70: =IF('Data for submission '!K69="","No Data",IF('Data for submission '!K69<'Data for submission '!K70,"Error","OK")) -> OK | M70: =IF('Data for submission '!M69="","No Data",IF('Data for submission '!M69<'Data for submission '!M70,"Error","OK")) -> OK | O70: =IF('Data for submission '!O69="","No Data",IF('Data for submission '!O69<'Data for submission '!O70,"Error","OK")) -> OK | Q70: =IF('Data for submission '!Q69="","No Data",IF('Data for submission '!Q69<'Data for submission '!Q70,"Error","OK")) -> OK
C71: 51 | D71: of which: Voting Board members | E71: Headcount | G71: =IF('Data for submission '!G70="","No Data",IF('Data for submission '!G70>'Data for submission '!G69,"Error","OK")) -> OK | I71: =IF('Data for submission '!I70="","No Data",IF('Data for submission '!I70>'Data for submission '!I69,"Error","OK")) -> OK | K71: =IF('Data for submission '!K70="","No Data",IF('Data for submission '!K70>'Data for submission '!K69,"Error","OK")) -> OK | M71: =IF('Data for submission '!M70="","No Data",IF('Data for submission '!M70>'Data for submission '!M69,"Error","OK")) -> OK | O71: =IF('Data for submission '!O70="","No Data",IF('Data for submission '!O70>'Data for submission '!O69,"Error","OK")) -> OK | Q71: =IF('Data for submission '!Q70="","No Data",IF('Data for submission '!Q70>'Data for submission '!Q69,"Error","OK")) -> OK
C72: 52 | D72: : Non Voting Board members | E72: Autocalculated | G72: =IF('Data for submission '!G71="Error","Error","") ->  | I72: =IF('Data for submission '!I71="Error","Error","") ->  | K72: =IF('Data for submission '!K71="Error","Error","") ->  | M72: =IF('Data for submission '!M71="Error","Error","") ->  | O72: =IF('Data for submission '!O71="Error","Error","") ->  | Q72: =IF('Data for submission '!Q71="Error","Error","") -> 
C73: 53 | D73: Total Board members | E73: Headcount | G73: =G70 -> OK | I73: =I70 -> OK | K73: =K70 -> OK | M73: =M70 -> OK | O73: =O70 -> OK | Q73: =Q70 -> OK
C74: 54 | D74: of which: Exec Board members | E74: Headcount | G74: =IF('Data for submission '!G73="","No Data",IF('Data for submission '!G73>'Data for submission '!G72,"Error","OK")) -> OK | I74: =IF('Data for submission '!I73="","No Data",IF('Data for submission '!I73>'Data for submission '!I72,"Error","OK")) -> OK | K74: =IF('Data for submission '!K73="","No Data",IF('Data for submission '!K73>'Data for submission '!K72,"Error","OK")) -> OK | M74: =IF('Data for submission '!M73="","No Data",IF('Data for submission '!M73>'Data for submission '!M72,"Error","OK")) -> OK | O74: =IF('Data for submission '!O73="","No Data",IF('Data for submission '!O73>'Data for submission '!O72,"Error","OK")) -> OK | Q74: =IF('Data for submission '!Q73="","No Data",IF('Data for submission '!Q73>'Data for submission '!Q72,"Error","OK")) -> OK
C75: 55 | D75: : Non Executive Board members | E75: Autocalculated | G75: =IF('Data for submission '!G74="Error","Error","") ->  | I75: =IF('Data for submission '!I74="Error","Error","") ->  | K75: =IF('Data for submission '!K74="Error","Error","") ->  | M75: =IF('Data for submission '!M74="Error","Error","") ->  | O75: =IF('Data for submission '!O74="Error","Error","") ->  | Q75: =IF('Data for submission '!Q74="Error","Error","") -> 
C76: 56 | D76: Number of staff in overall workforce | E76: Headcount | G76: =G58 -> OK | I76: =I58 -> OK | K76: =K58 -> OK | M76: =M58 -> OK | O76: =O58 -> OK | Q76: =Q58 -> OK
C77: 57 | D77: Total Board members - % by Ethnicity | E77: Auto calculated | G77: =IFERROR(G70/($G$70+$I$70+$K$70),"") ->  | I77: =IFERROR(I70/($G$70+$I$70+$K$70),"") ->  | K77: =IFERROR(K70/($G$70+$I$70+$K$70),"") ->  | M77: =IFERROR(M70/(M70+O70+Q70),"") ->  | O77: =IFERROR(O70/(M70+O70+Q70),"") ->  | Q77: =IFERROR(Q70/(M70+O70+Q70),"") -> 
C78: 58 | D78: Voting Board Member - % by Ethnicity | E78: Auto calculated | G78: =IFERROR(G71/($G$71+$I$71+$K$71),"") ->  | I78: =IFERROR(I71/($G$71+$I$71+$K$71),"") ->  | K78: =IFERROR(K71/($G$71+$I$71+$K$71),"") ->  | M78: =IFERROR(M71/(M71+O71+Q71),"") ->  | O78: =IFERROR(O71/(M71+O71+Q71),"") ->  | Q78: =IFERROR(Q71/(M71+O71+Q71),"") -> 
C79: 59 | D79: Non Voting Board Member - % by Ethnicity | E79: Auto calculated | G79: =IFERROR(G72/($G$72+$I$72+$K$72),"") ->  | I79: =IFERROR(I72/($G$72+$I$72+$K$72),"") ->  | K79: =IFERROR(K72/($G$72+$I$72+$K$72),"") ->  | M79: =IFERROR(M72/(M72+O72+Q72),"") ->  | O79: =IFERROR(O72/(M72+O72+Q72),"") ->  | Q79: =IFERROR(Q72/(M72+O72+Q72),"") -> 
C80: 60 | D80: Executive Board Member - % by Ethnicity | E80: Auto calculated | G80: =IFERROR(G74/($G$74+$I$74+$K$74),"") ->  | I80: =IFERROR(I74/($G$74+$I$74+$K$74),"") ->  | K80: =IFERROR(K74/($G$74+$I$74+$K$74),"") ->  | M80: =IFERROR(M74/(M74+O74+Q74),"") ->  | O80: =IFERROR(O74/(M74+O74+Q74),"") ->  | Q80: =IFERROR(Q74/(M74+O74+Q74),"") -> 
C81: 61 | D81: Non Executive Board Member - % by Ethnicity | E81: Auto calculated | G81: =IFERROR(G75/($G$75+$I$75+$K$75),"") ->  | I81: =IFERROR(I75/($G$75+$I$75+$K$75),"") ->  | K81: =IFERROR(K75/($G$75+$I$75+$K$75),"") ->  | M81: =IFERROR(M75/(M75+O75+Q75),"") ->  | O81: =IFERROR(O75/(M75+O75+Q75),"") ->  | Q81: =IFERROR(Q75/(M75+O75+Q75),"") -> 
C82: 62 | D82: Overall workforce - % by Ethnicity | E82: Auto calculated | G82: =IFERROR(G76/($G$76+$I$76+$K$76),"") ->  | I82: =IFERROR(I76/($G$76+$I$76+$K$76),"") ->  | K82: =IFERROR(K76/($G$76+$I$76+$K$76),"") ->  | M82: =IFERROR(M76/($M$76+$O$76+$Q$76),"") ->  | O82: =IFERROR(O76/($M$76+$O$76+$Q$76),"") ->  | Q82: =IFERROR(Q76/($M$76+$O$76+$Q$76),"") -> 
C83: 63 | D83: Difference (Total Board -Overall workforce ) | E83: Auto calculated | G83: =IFERROR(G77-G82,"") ->  | I83: =IFERROR(I77-I82,"") ->  | K83: =IFERROR(K77-K82,"") ->  | M83: =IFERROR(M77-M82,"") ->  | O83: =IFERROR(O77-O82,"") ->  | Q83: =IFERROR(Q77-Q82,"") -> 

Sheet Backsheet (hidden)
A1: Data Item:N | B1: LOOKUP_REF | C1: ESRFiguresWhitePreviousYear:N | D1: VerifiedFiguresWhitePreviousYear:N | E1: ESRFiguresBMEPreviousYear:N | F1: VerifiedFiguresBMEPreviousYear:N | G1: ESRFiguresUnknownPreviousYear:N | H1: VerifiedFiguresUnknownPreviousYear:N | I1: ESRFiguresWhiteCurrentYear:N | J1: VerifiedFiguresWhiteCurrentYear:N | K1: ESRFiguresBMECurrentYear:N | L1: VerifiedFiguresBMECurrentYear:N | M1: ESRFiguresUnknownCurrentYear:N | N1: VerifiedFiguresUnknownCurrentYear:N | O1: WrcComments
A2: 1 | B2: Ind1_NC_Under Band 1 | C2: =IF('Data for submission '!F17="",0,'Data for submission '!F17) -> 6 | D2: =IF('Data for submission '!G17="",0,'Data for submission '!G17) -> 6 | E2: =IF('Data for submission '!H17="",0,'Data for submission '!H17) -> 32 | F2: =IF('Data for submission '!I17="",0,'Data for submission '!I17) -> 31 | G2: =IF('Data for submission '!J17="",0,'Data for submission '!J17) -> 0 | H2: =IF('Data for submission '!K17="",0,'Data for submission '!K17) -> 0 | I2: =IF('Data for submission '!L17="",0,'Data for submission '!L17) -> 7 | J2: =IF('Data for submission '!M17="",0,'Data for submission '!M17) -> 7 | K2: =IF('Data for submission '!N17="",0,'Data for submission '!N17) -> 31 | L2: =IF('Data for submission '!O17="",0,'Data for submission '!O17) -> 31 | M2: =IF('Data for submission '!P17="",0,'Data for submission '!P17) -> 1 | N2: =IF('Data for submission '!Q17="",0,'Data for submission '!Q17) -> 1 | O2: =IF(ISBLANK('Data for submission '!R17),"",'Data for submission '!R17) -> 
A3: 2 | B3: Ind1_NC_Band 1 | C3: =IF('Data for submission '!F18="",0,'Data for submission '!F18) -> 0 | D3: =IF('Data for submission '!G18="",0,'Data for submission '!G18) -> 0 | E3: =IF('Data for submission '!H18="",0,'Data for submission '!H18) -> 0 | F3: =IF('Data for submission '!I18="",0,'Data for submission '!I18) -> 0 | G3: =IF('Data for submission '!J18="",0,'Data for submission '!J18) -> 0 | H3: =IF('Data for submission '!K18="",0,'Data for submission '!K18) -> 0 | I3: =IF('Data for submission '!L18="",0,'Data for submission '!L18) -> 0 | J3: =IF('Data for submission '!M18="",0,'Data for submission '!M18) -> 0 | K3: =IF('Data for submission '!N18="",0,'Data for submission '!N18) -> 0 | L3: =IF('Data for submission '!O18="",0,'Data for submission '!O18) -> 0 | M3: =IF('Data for submission '!P18="",0,'Data for submission '!P18) -> 0 | N3: =IF('Data for submission '!Q18="",0,'Data for submission '!Q18) -> 0 | O3: =IF(ISBLANK('Data for submission '!R18),"",'Data for submission '!R18) -> 
A4: 3 | B4: Ind1_NC_Band 2 | C4: =IF('Data for submission '!F19="",0,'Data for submission '!F19) -> 2 | D4: =IF('Data for submission '!G19="",0,'Data for submission '!G19) -> 2 | E4: =IF('Data for submission '!H19="",0,'Data for submission '!H19) -> 5 | F4: =IF('Data for submission '!I19="",0,'Data for submission '!I19) -> 5 | G4: =IF('Data for submission '!J19="",0,'Data for submission '!J19) -> 0 | H4: =IF('Data for submission '!K19="",0,'Data for submission '!K19) -> 0 | I4: =IF('Data for submission '!L19="",0,'Data for submission '!L19) -> 29 | J4: =IF('Data for submission '!M19="",0,'Data for submission '!M19) -> 29 | K4: =IF('Data for submission '!N19="",0,'Data for submission '!N19) -> 5 | L4: =IF('Data for submission '!O19="",0,'Data for submission '!O19) -> 5 | M4: =IF('Data for submission '!P19="",0,'Data for submission '!P19) -> 0 | N4: =IF('Data for submission '!Q19="",0,'Data for submission '!Q19) -> 0 | O4: =IF(ISBLANK('Data for submission '!R19),"",'Data for submission '!R19) -> 
A5: 4 | B5: Ind1_NC_Band 3 | C5: =IF('Data for submission '!F20="",0,'Data for submission '!F20) -> 65 | D5: =IF('Data for submission '!G20="",0,'Data for submission '!G20) -> 64 | E5: =IF('Data for submission '!H20="",0,'Data for submission '!H20) -> 98 | F5: =IF('Data for submission '!I20="",0,'Data for submission '!I20) -> 98 | G5: =IF('Data for submission '!J20="",0,'Data for submission '!J20) -> 2 | H5: =IF('Data for submission '!K20="",0,'Data for submission '!K20) -> 2 | I5: =IF('Data for submission '!L20="",0,'Data for submission '!L20) -> 94 | J5: =IF('Data for submission '!M20="",0,'Data for submission '!M20) -> 94 | K5: =IF('Data for submission '!N20="",0,'Data for submission '!N20) -> 116 | L5: =IF('Data for submission '!O20="",0,'Data for submission '!O20) -> 116 | M5: =IF('Data for submission '!P20="",0,'Data for submission '!P20) -> 4 | N5: =IF('Data for submission '!Q20="",0,'Data for submission '!Q20) -> 4 | O5: =IF(ISBLANK('Data for submission '!R20),"",'Data for submission '!R20) -> 
A6: 5 | B6: Ind1_NC_Band 4 | C6: =IF('Data for submission '!F21="",0,'Data for submission '!F21) -> 134 | D6: =IF('Data for submission '!G21="",0,'Data for submission '!G21) -> 134 | E6: =IF('Data for submission '!H21="",0,'Data for submission '!H21) -> 196 | F6: =IF('Data for submission '!I21="",0,'Data for submission '!I21) -> 194 | G6: =IF('Data for submission '!J21="",0,'Data for submission '!J21) -> 12 | H6: =IF('Data for submission '!K21="",0,'Data for submission '!K21) -> 12 | I6: =IF('Data for submission '!L21="",0,'Data for submission '!L21) -> 137 | J6: =IF('Data for submission '!M21="",0,'Data for submission '!M21) -> 137 | K6: =IF('Data for submission '!N21="",0,'Data for submission '!N21) -> 187 | L6: =IF('Data for submission '!O21="",0,'Data for submission '!O21) -> 187 | M6: =IF('Data for submission '!P21="",0,'Data for submission '!P21) -> 16 | N6: =IF('Data for submission '!Q21="",0,'Data for submission '!Q21) -> 16 | O6: =IF(ISBLANK('Data for submission '!R21),"",'Data for submission '!R21) -> 
A7: 6 | B7: Ind1_NC_Band 5 | C7: =IF('Data for submission '!F22="",0,'Data for submission '!F22) -> 81 | D7: =IF('Data for submission '!G22="",0,'Data for submission '!G22) -> 81 | E7: =IF('Data for submission '!H22="",0,'Data for submission '!H22) -> 91 | F7: =IF('Data for submission '!I22="",0,'Data for submission '!I22) -> 90 | G7: =IF('Data for submission '!J22="",0,'Data for submission '!J22) -> 5 | H7: =IF('Data for submission '!K22="",0,'Data for submission '!K22) -> 5 | I7: =IF('Data for submission '!L22="",0,'Data for submission '!L22) -> 91 | J7: =IF('Data for submission '!M22="",0,'Data for submission '!M22) -> 91 | K7: =IF('Data for submission '!N22="",0,'Data for submission '!N22) -> 110 | L7: =IF('Data for submission '!O22="",0,'Data for submission '!O22) -> 110 | M7: =IF('Data for submission '!P22="",0,'Data for submission '!P22) -> 8 | N7: =IF('Data for submission '!Q22="",0,'Data for submission '!Q22) -> 8 | O7: =IF(ISBLANK('Data for submission '!R22),"",'Data for submission '!R22) -> 
A8: 7 | B8: Ind1_NC_Band 6 | C8: =IF('Data for submission '!F23="",0,'Data for submission '!F23) -> 58 | D8: =IF('Data for submission '!G23="",0,'Data for submission '!G23) -> 57 | E8: =IF('Data for submission '!H23="",0,'Data for submission '!H23) -> 64 | F8: =IF('Data for submission '!I23="",0,'Data for submission '!I23) -> 64 | G8: =IF('Data for submission '!J23="",0,'Data for submission '!J23) -> 3 | H8: =IF('Data for submission '!K23="",0,'Data for submission '!K23) -> 3 | I8: =IF('Data for submission '!L23="",0,'Data for submission '!L23) -> 69 | J8: =IF('Data for submission '!M23="",0,'Data for submission '!M23) -> 69 | K8: =IF('Data for submission '!N23="",0,'Data for submission '!N23) -> 65 | L8: =IF('Data for submission '!O23="",0,'Data for submission '!O23) -> 65 | M8: =IF('Data for submission '!P23="",0,'Data for submission '!P23) -> 7 | N8: =IF('Data for submission '!Q23="",0,'Data for submission '!Q23) -> 7 | O8: =IF(ISBLANK('Data for submission '!R23),"",'Data for submission '!R23) -> 
A9: 8 | B9: Ind1_NC_Band 7 | C9: =IF('Data for submission '!F24="",0,'Data for submission '!F24) -> 48 | D9: =IF('Data for submission '!G24="",0,'Data for submission '!G24) -> 49 | E9: =IF('Data for submission '!H24="",0,'Data for submission '!H24) -> 31 | F9: =IF('Data for submission '!I24="",0,'Data for submission '!I24) -> 30 | G9: =IF('Data for submission '!J24="",0,'Data for submission '!J24) -> 0 | H9: =IF('Data for submission '!K24="",0,'Data for submission '!K24) -> 0 | I9: =IF('Data for submission '!L24="",0,'Data for submission '!L24) -> 47 | J9: =IF('Data for submission '!M24="",0,'Data for submission '!M24) -> 47 | K9: =IF('Data for submission '!N24="",0,'Data for submission '!N24) -> 30 | L9: =IF('Data for submission '!O24="",0,'Data for submission '!O24) -> 30 | M9: =IF('Data for submission '!P24="",0,'Data for submission '!P24) -> 3 | N9: =IF('Data for submission '!Q24="",0,'Data for submission '!Q24) -> 3 | O9: =IF(ISBLANK('Data for submission '!R24),"",'Data for submission '!R24) -> 
A10: 9 | B10: Ind1_NC_Band 8A | C10: =IF('Data for submission '!F25="",0,'Data for submission '!F25) -> 53 | D10: =IF('Data for submission '!G25="",0,'Data for submission '!G25) -> 51 | E10: =IF('Data for submission '!H25="",0,'Data for submission '!H25) -> 28 | F10: =IF('Data for submission '!I25="",0,'Data for submission '!I25) -> 29 | G10: =IF('Data for submission '!J25="",0,'Data for submission '!J25) -> 1 | H10: =IF('Data for submission '!K25="",0,'Data for submission '!K25) -> 1 | I10: =IF('Data for submission '!L25="",0,'Data for submission '!L25) -> 51 | J10: =IF('Data for submission '!M25="",0,'Data for submission '!M25) -> 51 | K10: =IF('Data for submission '!N25="",0,'Data for submission '!N25) -> 40 | L10: =IF('Data for submission '!O25="",0,'Data for submission '!O25) -> 40 | M10: =IF('Data for submission '!P25="",0,'Data for submission '!P25) -> 4 | N10: =IF('Data for submission '!Q25="",0,'Data for submission '!Q25) -> 4 | O10: =IF(ISBLANK('Data for submission '!R25),"",'Data for submission '!R25) -> 
A11: 10 | B11: Ind1_NC_Band 8B | C11: =IF('Data for submission '!F26="",0,'Data for submission '!F26) -> 31 | D11: =IF('Data for submission '!G26="",0,'Data for submission '!G26) -> 31 | E11: =IF('Data for submission '!H26="",0,'Data for submission '!H26) -> 5 | F11: =IF('Data for submission '!I26="",0,'Data for submission '!I26) -> 5 | G11: =IF('Data for submission '!J26="",0,'Data for submission '!J26) -> 0 | H11: =IF('Data for submission '!K26="",0,'Data for submission '!K26) -> 0 | I11: =IF('Data for submission '!L26="",0,'Data for submission '!L26) -> 23 | J11: =IF('Data for submission '!M26="",0,'Data for submission '!M26) -> 23 | K11: =IF('Data for submission '!N26="",0,'Data for submission '!N26) -> 8 | L11: =IF('Data for submission '!O26="",0,'Data for submission '!O26) -> 8 | M11: =IF('Data for submission '!P26="",0,'Data for submission '!P26) -> 0 | N11: =IF('Data for submission '!Q26="",0,'Data for submission '!Q26) -> 0 | O11: =IF(ISBLANK('Data for submission '!R26),"",'Data for submission '!R26) -> 
A12: 11 | B12: Ind1_NC_Band 8C | C12: =IF('Data for submission '!F27="",0,'Data for submission '!F27) -> 19 | D12: =IF('Data for submission '!G27="",0,'Data for submission '!G27) -> 19 | E12: =IF('Data for submission '!H27="",0,'Data for submission '!H27) -> 6 | F12: =IF('Data for submission '!I27="",0,'Data for submission '!I27) -> 6 | G12: =IF('Data for submission '!J27="",0,'Data for submission '!J27) -> 0 | H12: =IF('Data for submission '!K27="",0,'Data for submission '!K27) -> 0 | I12: =IF('Data for submission '!L27="",0,'Data for submission '!L27) -> 23 | J12: =IF('Data for submission '!M27="",0,'Data for submission '!M27) -> 23 | K12: =IF('Data for submission '!N27="",0,'Data for submission '!N27) -> 6 | L12: =IF('Data for submission '!O27="",0,'Data for submission '!O27) -> 6 | M12: =IF('Data for submission '!P27="",0,'Data for submission '!P27) -> 0 | N12: =IF('Data for submission '!Q27="",0,'Data for submission '!Q27) -> 0 | O12: =IF(ISBLANK('Data for submission '!R27),"",'Data for submission '!R27) -> 
A13: 12 | B13: Ind1_NC_Band 8D | C13: =IF('Data for submission '!F28="",0,'Data for submission '!F28) -> 15 | D13: =IF('Data for submission '!G28="",0,'Data for submission '!G28) -> 16 | E13: =IF('Data for submission '!H28="",0,'Data for submission '!H28) -> 0 | F13: =IF('Data for submission '!I28="",0,'Data for submission '!I28) -> 0 | G13: =IF('Data for submission '!J28="",0,'Data for submission '!J28) -> 0 | H13: =IF('Data for submission '!K28="",0,'Data for submission '!K28) -> 0 | I13: =IF('Data for submission '!L28="",0,'Data for submission '!L28) -> 22 | J13: =IF('Data for submission '!M28="",0,'Data for submission '!M28) -> 22 | K13: =IF('Data for submission '!N28="",0,'Data for submission '!N28) -> 2 | L13: =IF('Data for submission '!O28="",0,'Data for submission '!O28) -> 2 | M13: =IF('Data for submission '!P28="",0,'Data for submission '!P28) -> 0 | N13: =IF('Data for submission '!Q28="",0,'Data for submission '!Q28) -> 0 | O13: =IF(ISBLANK('Data for submission '!R28),"",'Data for submission '!R28) -> 
A14: 13 | B14: Ind1_NC_Band 9 | C14: =IF('Data for submission '!F29="",0,'Data for submission '!F29) -> 4 | D14: =IF('Data for submission '!G29="",0,'Data for submission '!G29) -> 6 | E14: =IF('Data for submission '!H29="",0,'Data for submission '!H29) -> 0 | F14: =IF('Data for submission '!I29="",0,'Data for submission '!I29) -> 2 | G14: =IF('Data for submission '!J29="",0,'Data for submission '!J29) -> 0 | H14: =IF('Data for submission '!K29="",0,'Data for submission '!K29) -> 0 | I14: =IF('Data for submission '!L29="",0,'Data for submission '!L29) -> 7 | J14: =IF('Data for submission '!M29="",0,'Data for submission '!M29) -> 7 | K14: =IF('Data for submission '!N29="",0,'Data for submission '!N29) -> 2 | L14: =IF('Data for submission '!O29="",0,'Data for submission '!O29) -> 2 | M14: =IF('Data for submission '!P29="",0,'Data for submission '!P29) -> 0 | N14: =IF('Data for submission '!Q29="",0,'Data for submission '!Q29) -> 0 | O14: =IF(ISBLANK('Data for submission '!R29),"",'Data for submission '!R29) -> 
A15: 14 | B15: Ind1_NC_VSM | C15: =IF('Data for submission '!F30="",0,'Data for submission '!F30) -> 7 | D15: =IF('Data for submission '!G30="",0,'Data for submission '!G30) -> 5 | E15: =IF('Data for submission '!H30="",0,'Data for submission '!H30) -> 5 | F15: =IF('Data for submission '!I30="",0,'Data for submission '!I30) -> 4 | G15: =IF('Data for submission '!J30="",0,'Data for submission '!J30) -> 0 | H15: =IF('Data for submission '!K30="",0,'Data for submission '!K30) -> 0 | I15: =IF('Data for submission '!L30="",0,'Data for submission '!L30) -> 3 | J15: =IF('Data for submission '!M30="",0,'Data for submission '!M30) -> 3 | K15: =IF('Data for submission '!N30="",0,'Data for submission '!N30) -> 4 | L15: =IF('Data for submission '!O30="",0,'Data for submission '!O30) -> 4 | M15: =IF('Data for submission '!P30="",0,'Data for submission '!P30) -> 0 | N15: =IF('Data for submission '!Q30="",0,'Data for submission '!Q30) -> 0 | O15: =IF(ISBLANK('Data for submission '!R30),"",'Data for submission '!R30) -> 
A16: 15 | B16: Ind1_Clin_NMUnder Band 1 | C16: =IF('Data for submission '!F33="",0,'Data for submission '!F33) -> 5 | D16: =IF('Data for submission '!G33="",0,'Data for submission '!G33) -> 4 | E16: =IF('Data for submission '!H33="",0,'Data for submission '!H33) -> 12 | F16: =IF('Data for submission '!I33="",0,'Data for submission '!I33) -> 12 | G16: =IF('Data for submission '!J33="",0,'Data for submission '!J33) -> 0 | H16: =IF('Data for submission '!K33="",0,'Data for submission '!K33) -> 1 | I16: =IF('Data for submission '!L33="",0,'Data for submission '!L33) -> 7 | J16: =IF('Data for submission '!M33="",0,'Data for submission '!M33) -> 7 | K16: =IF('Data for submission '!N33="",0,'Data for submission '!N33) -> 8 | L16: =IF('Data for submission '!O33="",0,'Data for submission '!O33) -> 8 | M16: =IF('Data for submission '!P33="",0,'Data for submission '!P33) -> 0 | N16: =IF('Data for submission '!Q33="",0,'Data for submission '!Q33) -> 0 | O16: =IF(ISBLANK('Data for submission '!R33),"",'Data for submission '!R33) -> 
A17: 16 | B17: Ind1_Clin_NMBand 1 | C17: =IF('Data for submission '!F34="",0,'Data for submission '!F34) -> 0 | D17: =IF('Data for submission '!G34="",0,'Data for submission '!G34) -> 0 | E17: =IF('Data for submission '!H34="",0,'Data for submission '!H34) -> 0 | F17: =IF('Data for submission '!I34="",0,'Data for submission '!I34) -> 0 | G17: =IF('Data for submission '!J34="",0,'Data for submission '!J34) -> 0 | H17: =IF('Data for submission '!K34="",0,'Data for submission '!K34) -> 0 | I17: =IF('Data for submission '!L34="",0,'Data for submission '!L34) -> 0 | J17: =IF('Data for submission '!M34="",0,'Data for submission '!M34) -> 0 | K17: =IF('Data for submission '!N34="",0,'Data for submission '!N34) -> 0 | L17: =IF('Data for submission '!O34="",0,'Data for submission '!O34) -> 0 | M17: =IF('Data for submission '!P34="",0,'Data for submission '!P34) -> 0 | N17: =IF('Data for submission '!Q34="",0,'Data for submission '!Q34) -> 0 | O17: =IF(ISBLANK('Data for submission '!R34),"",'Data for submission '!R34) -> 
A18: 17 | B18: Ind1_Clin_NMBand 2 | C18: =IF('Data for submission '!F35="",0,'Data for submission '!F35) -> 0 | D18: =IF('Data for submission '!G35="",0,'Data for submission '!G35) -> 0 | E18: =IF('Data for submission '!H35="",0,'Data for submission '!H35) -> 5 | F18: =IF('Data for submission '!I35="",0,'Data for submission '!I35) -> 3 | G18: =IF('Data for submission '!J35="",0,'Data for submission '!J35) -> 0 | H18: =IF('Data for submission '!K35="",0,'Data for submission '!K35) -> 0 | I18: =IF('Data for submission '!L35="",0,'Data for submission '!L35) -> 18 | J18: =IF('Data for submission '!M35="",0,'Data for submission '!M35) -> 18 | K18: =IF('Data for submission '!N35="",0,'Data for submission '!N35) -> 1 | L18: =IF('Data for submission '!O35="",0,'Data for submission '!O35) -> 1 | M18: =IF('Data for submission '!P35="",0,'Data for submission '!P35) -> 0 | N18: =IF('Data for submission '!Q35="",0,'Data for submission '!Q35) -> 0 | O18: =IF(ISBLANK('Data for submission '!R35),"",'Data for submission '!R35) -> 
A19: 18 | B19: Ind1_Clin_NMBand 3 | C19: =IF('Data for submission '!F36="",0,'Data for submission '!F36) -> 207 | D19: =IF('Data for submission '!G36="",0,'Data for submission '!G36) -> 191 | E19: =IF('Data for submission '!H36="",0,'Data for submission '!H36) -> 489 | F19: =IF('Data for submission '!I36="",0,'Data for submission '!I36) -> 469 | G19: =IF('Data for submission '!J36="",0,'Data for submission '!J36) -> 13 | H19: =IF('Data for submission '!K36="",0,'Data for submission '!K36) -> 13 | I19: =IF('Data for submission '!L36="",0,'Data for submission '!L36) -> 211 | J19: =IF('Data for submission '!M36="",0,'Data for submission '!M36) -> 211 | K19: =IF('Data for submission '!N36="",0,'Data for submission '!N36) -> 462 | L19: =IF('Data for submission '!O36="",0,'Data for submission '!O36) -> 462 | M19: =IF('Data for submission '!P36="",0,'Data for submission '!P36) -> 32 | N19: =IF('Data for submission '!Q36="",0,'Data for submission '!Q36) -> 32 | O19: =IF(ISBLANK('Data for submission '!R36),"",'Data for submission '!R36) -> 
A20: 19 | B20: Ind1_Clin_NMBand 4 | C20: =IF('Data for submission '!F37="",0,'Data for submission '!F37) -> 129 | D20: =IF('Data for submission '!G37="",0,'Data for submission '!G37) -> 130 | E20: =IF('Data for submission '!H37="",0,'Data for submission '!H37) -> 155 | F20: =IF('Data for submission '!I37="",0,'Data for submission '!I37) -> 156 | G20: =IF('Data for submission '!J37="",0,'Data for submission '!J37) -> 2 | H20: =IF('Data for submission '!K37="",0,'Data for submission '!K37) -> 2 | I20: =IF('Data for submission '!L37="",0,'Data for submission '!L37) -> 164 | J20: =IF('Data for submission '!M37="",0,'Data for submission '!M37) -> 164 | K20: =IF('Data for submission '!N37="",0,'Data for submission '!N37) -> 204 | L20: =IF('Data for submission '!O37="",0,'Data for submission '!O37) -> 204 | M20: =IF('Data for submission '!P37="",0,'Data for submission '!P37) -> 13 | N20: =IF('Data for submission '!Q37="",0,'Data for submission '!Q37) -> 13 | O20: =IF(ISBLANK('Data for submission '!R37),"",'Data for submission '!R37) -> 
A21: 20 | B21: Ind1_Clin_NMBand 5 | C21: =IF('Data for submission '!F38="",0,'Data for submission '!F38) -> 200 | D21: =IF('Data for submission '!G38="",0,'Data for submission '!G38) -> 197 | E21: =IF('Data for submission '!H38="",0,'Data for submission '!H38) -> 392 | F21: =IF('Data for submission '!I38="",0,'Data for submission '!I38) -> 393 | G21: =IF('Data for submission '!J38="",0,'Data for submission '!J38) -> 14 | H21: =IF('Data for submission '!K38="",0,'Data for submission '!K38) -> 14 | I21: =IF('Data for submission '!L38="",0,'Data for submission '!L38) -> 277 | J21: =IF('Data for submission '!M38="",0,'Data for submission '!M38) -> 277 | K21: =IF('Data for submission '!N38="",0,'Data for submission '!N38) -> 393 | L21: =IF('Data for submission '!O38="",0,'Data for submission '!O38) -> 393 | M21: =IF('Data for submission '!P38="",0,'Data for submission '!P38) -> 12 | N21: =IF('Data for submission '!Q38="",0,'Data for submission '!Q38) -> 12 | O21: =IF(ISBLANK('Data for submission '!R38),"",'Data for submission '!R38) -> 
A22: 21 | B22: Ind1_Clin_NMBand 6 | C22: =IF('Data for submission '!F39="",0,'Data for submission '!F39) -> 345 | D22: =IF('Data for submission '!G39="",0,'Data for submission '!G39) -> 343 | E22: =IF('Data for submission '!H39="",0,'Data for submission '!H39) -> 472 | F22: =IF('Data for submission '!I39="",0,'Data for submission '!I39) -> 472 | G22: =IF('Data for submission '!J39="",0,'Data for submission '!J39) -> 8 | H22: =IF('Data for submission '!K39="",0,'Data for submission '!K39) -> 8 | I22: =IF('Data for submission '!L39="",0,'Data for submission '!L39) -> 408 | J22: =IF('Data for submission '!M39="",0,'Data for submission '!M39) -> 408 | K22: =IF('Data for submission '!N39="",0,'Data for submission '!N39) -> 510 | L22: =IF('Data for submission '!O39="",0,'Data for submission '!O39) -> 510 | M22: =IF('Data for submission '!P39="",0,'Data for submission '!P39) -> 22 | N22: =IF('Data for submission '!Q39="",0,'Data for submission '!Q39) -> 22 | O22: =IF(ISBLANK('Data for submission '!R39),"",'Data for submission '!R39) -> 
A23: 22 | B23: Ind1_Clin_NMBand 7 | C23: =IF('Data for submission '!F40="",0,'Data for submission '!F40) -> 388 | D23: =IF('Data for submission '!G40="",0,'Data for submission '!G40) -> 384 | E23: =IF('Data for submission '!H40="",0,'Data for submission '!H40) -> 253 | F23: =IF('Data for submission '!I40="",0,'Data for submission '!I40) -> 254 | G23: =IF('Data for submission '!J40="",0,'Data for submission '!J40) -> 10 | H23: =IF('Data for submission '!K40="",0,'Data for submission '!K40) -> 10 | I23: =IF('Data for submission '!L40="",0,'Data for submission '!L40) -> 487 | J23: =IF('Data for submission '!M40="",0,'Data for submission '!M40) -> 487 | K23: =IF('Data for submission '!N40="",0,'Data for submission '!N40) -> 287 | L23: =IF('Data for submission '!O40="",0,'Data for submission '!O40) -> 287 | M23: =IF('Data for submission '!P40="",0,'Data for submission '!P40) -> 23 | N23: =IF('Data for submission '!Q40="",0,'Data for submission '!Q40) -> 23 | O23: =IF(ISBLANK('Data for submission '!R40),"",'Data for submission '!R40) -> 
A24: 23 | B24: Ind1_Clin_NMBand 8A | C24: =IF('Data for submission '!F41="",0,'Data for submission '!F41) -> 225 | D24: =IF('Data for submission '!G41="",0,'Data for submission '!G41) -> 230 | E24: =IF('Data for submission '!H41="",0,'Data for submission '!H41) -> 90 | F24: =IF('Data for submission '!I41="",0,'Data for submission '!I41) -> 91 | G24: =IF('Data for submission '!J41="",0,'Data for submission '!J41) -> 9 | H24: =IF('Data for submission '!K41="",0,'Data for submission '!K41) -> 9 | I24: =IF('Data for submission '!L41="",0,'Data for submission '!L41) -> 232 | J24: =IF('Data for submission '!M41="",0,'Data for submission '!M41) -> 232 | K24: =IF('Data for submission '!N41="",0,'Data for submission '!N41) -> 95 | L24: =IF('Data for submission '!O41="",0,'Data for submission '!O41) -> 95 | M24: =IF('Data for submission '!P41="",0,'Data for submission '!P41) -> 13 | N24: =IF('Data for submission '!Q41="",0,'Data for submission '!Q41) -> 13 | O24: =IF(ISBLANK('Data for submission '!R41),"",'Data for submission '!R41) -> 
A25: 24 | B25: Ind1_Clin_NMBand 8B | C25: =IF('Data for submission '!F42="",0,'Data for submission '!F42) -> 67 | D25: =IF('Data for submission '!G42="",0,'Data for submission '!G42) -> 67 | E25: =IF('Data for submission '!H42="",0,'Data for submission '!H42) -> 17 | F25: =IF('Data for submission '!I42="",0,'Data for submission '!I42) -> 17 | G25: =IF('Data for submission '!J42="",0,'Data for submission '!J42) -> 1 | H25: =IF('Data for submission '!K42="",0,'Data for submission '!K42) -> 1 | I25: =IF('Data for submission '!L42="",0,'Data for submission '!L42) -> 85 | J25: =IF('Data for submission '!M42="",0,'Data for submission '!M42) -> 85 | K25: =IF('Data for submission '!N42="",0,'Data for submission '!N42) -> 26 | L25: =IF('Data for submission '!O42="",0,'Data for submission '!O42) -> 26 | M25: =IF('Data for submission '!P42="",0,'Data for submission '!P42) -> 4 | N25: =IF('Data for submission '!Q42="",0,'Data for submission '!Q42) -> 4 | O25: =IF(ISBLANK('Data for submission '!R42),"",'Data for submission '!R42) -> 
A26: 25 | B26: Ind1_Clin_NMBand 8C | C26: =IF('Data for submission '!F43="",0,'Data for submission '!F43) -> 35 | D26: =IF('Data for submission '!G43="",0,'Data for submission '!G43) -> 35 | E26: =IF('Data for submission '!H43="",0,'Data for submission '!H43) -> 10 | F26: =IF('Data for submission '!I43="",0,'Data for submission '!I43) -> 9 | G26: =IF('Data for submission '!J43="",0,'Data for submission '!J43) -> 0 | H26: =IF('Data for submission '!K43="",0,'Data for submission '!K43) -> 0 | I26: =IF('Data for submission '!L43="",0,'Data for submission '!L43) -> 41 | J26: =IF('Data for submission '!M43="",0,'Data for submission '!M43) -> 41 | K26: =IF('Data for submission '!N43="",0,'Data for submission '!N43) -> 10 | L26: =IF('Data for submission '!O43="",0,'Data for submission '!O43) -> 10 | M26: =IF('Data for submission '!P43="",0,'Data for submission '!P43) -> 0 | N26: =IF('Data for submission '!Q43="",0,'Data for submission '!Q43) -> 0 | O26: =IF(ISBLANK('Data for submission '!R43),"",'Data for submission '!R43) -> 
A27: 26 | B27: Ind1_Clin_NMBand 8D | C27: =IF('Data for submission '!F44="",0,'Data for submission '!F44) -> 9 | D27: =IF('Data for submission '!G44="",0,'Data for submission '!G44) -> 9 | E27: =IF('Data for submission '!H44="",0,'Data for submission '!H44) -> 2 | F27: =IF('Data for submission '!I44="",0,'Data for submission '!I44) -> 2 | G27: =IF('Data for submission '!J44="",0,'Data for submission '!J44) -> 1 | H27: =IF('Data for submission '!K44="",0,'Data for submission '!K44) -> 1 | I27: =IF('Data for submission '!L44="",0,'Data for submission '!L44) -> 10 | J27: =IF('Data for submission '!M44="",0,'Data for submission '!M44) -> 10 | K27: =IF('Data for submission '!N44="",0,'Data for submission '!N44) -> 1 | L27: =IF('Data for submission '!O44="",0,'Data for submission '!O44) -> 1 | M27: =IF('Data for submission '!P44="",0,'Data for submission '!P44) -> 2 | N27: =IF('Data for submission '!Q44="",0,'Data for submission '!Q44) -> 2 | O27: =IF(ISBLANK('Data for submission '!R44),"",'Data for submission '!R44) -> 
A28: 27 | B28: Ind1_Clin_NMBand 9 | C28: =IF('Data for submission '!F45="",0,'Data for submission '!F45) -> 2 | D28: =IF('Data for submission '!G45="",0,'Data for submission '!G45) -> 4 | E28: =IF('Data for submission '!H45="",0,'Data for submission '!H45) -> 1 | F28: =IF('Data for submission '!I45="",0,'Data for submission '!I45) -> 1 | G28: =IF('Data for submission '!J45="",0,'Data for submission '!J45) -> 0 | H28: =IF('Data for submission '!K45="",0,'Data for submission '!K45) -> 0 | I28: =IF('Data for submission '!L45="",0,'Data for submission '!L45) -> 3 | J28: =IF('Data for submission '!M45="",0,'Data for submission '!M45) -> 3 | K28: =IF('Data for submission '!N45="",0,'Data for submission '!N45) -> 1 | L28: =IF('Data for submission '!O45="",0,'Data for submission '!O45) -> 1 | M28: =IF('Data for submission '!P45="",0,'Data for submission '!P45) -> 0 | N28: =IF('Data for submission '!Q45="",0,'Data for submission '!Q45) -> 0 | O28: =IF(ISBLANK('Data for submission '!R45),"",'Data for submission '!R45) -> 
A29: 28 | B29: Ind1_Clin_NMVSM | C29: =IF('Data for submission '!F46="",0,'Data for submission '!F46) -> 5 | D29: =IF('Data for submission '!G46="",0,'Data for submission '!G46) -> 0 | E29: =IF('Data for submission '!H46="",0,'Data for submission '!H46) -> 0 | F29: =IF('Data for submission '!I46="",0,'Data for submission '!I46) -> 0 | G29: =IF('Data for submission '!J46="",0,'Data for submission '!J46) -> 0 | H29: =IF('Data for submission '!K46="",0,'Data for submission '!K46) -> 0 | I29: =IF('Data for submission '!L46="",0,'Data for submission '!L46) -> 1 | J29: =IF('Data for submission '!M46="",0,'Data for submission '!M46) -> 1 | K29: =IF('Data for submission '!N46="",0,'Data for submission '!N46) -> 2 | L29: =IF('Data for submission '!O46="",0,'Data for submission '!O46) -> 2 | M29: =IF('Data for submission '!P46="",0,'Data for submission '!P46) -> 0 | N29: =IF('Data for submission '!Q46="",0,'Data for submission '!Q46) -> 0 | O29: =IF(ISBLANK('Data for submission '!R46),"",'Data for submission '!R46) -> 
A30: 29 | B30: Ind1_Clin_MDConsultants | C30: =IF('Data for submission '!F48="",0,'Data for submission '!F48) -> 148 | D30: =IF('Data for submission '!G48="",0,'Data for submission '!G48) -> 132 | E30: =IF('Data for submission '!H48="",0,'Data for submission '!H48) -> 92 | F30: =IF('Data for submission '!I48="",0,'Data for submission '!I48) -> 75 | G30: =IF('Data for submission '!J48="",0,'Data for submission '!J48) -> 6 | H30: =IF('Data for submission '!K48="",0,'Data for submission '!K48) -> 3 | I30: =IF('Data for submission '!L48="",0,'Data for submission '!L48) -> 125 | J30: =IF('Data for submission '!M48="",0,'Data for submission '!M48) -> 125 | K30: =IF('Data for submission '!N48="",0,'Data for submission '!N48) -> 71 | L30: =IF('Data for submission '!O48="",0,'Data for submission '!O48) -> 71 | M30: =IF('Data for submission '!P48="",0,'Data for submission '!P48) -> 11 | N30: =IF('Data for submission '!Q48="",0,'Data for submission '!Q48) -> 11 | O30: =IF(ISBLANK('Data for submission '!R48),"",'Data for submission '!R48) -> 
A31: 30 | B31: Ind1_Clin_MD of which Senior medical manager | C31: =IF('Data for submission '!F49="",0,'Data for submission '!F49) -> 0 | D31: =IF('Data for submission '!G49="",0,'Data for submission '!G49) -> 0 | E31: =IF('Data for submission '!H49="",0,'Data for submission '!H49) -> 0 | F31: =IF('Data for submission '!I49="",0,'Data for submission '!I49) -> 0 | G31: =IF('Data for submission '!J49="",0,'Data for submission '!J49) -> 0 | H31: =IF('Data for submission '!K49="",0,'Data for submission '!K49) -> 0 | I31: =IF('Data for submission '!L49="",0,'Data for submission '!L49) -> 0 | J31: =IF('Data for submission '!M49="",0,'Data for submission '!M49) -> 0 | K31: =IF('Data for submission '!N49="",0,'Data for submission '!N49) -> 0 | L31: =IF('Data for submission '!O49="",0,'Data for submission '!O49) -> 0 | M31: =IF('Data for submission '!P49="",0,'Data for submission '!P49) -> 0 | N31: =IF('Data for submission '!Q49="",0,'Data for submission '!Q49) -> 0 | O31: =IF(ISBLANK('Data for submission '!R49),"",'Data for submission '!R49) -> 
A32: 31 | B32: Ind1_Clin_MDNon-consultant career grade | C32: =IF('Data for submission '!F50="",0,'Data for submission '!F50) -> 19 | D32: =IF('Data for submission '!G50="",0,'Data for submission '!G50) -> 19 | E32: =IF('Data for submission '!H50="",0,'Data for submission '!H50) -> 39 | F32: =IF('Data for submission '!I50="",0,'Data for submission '!I50) -> 38 | G32: =IF('Data for submission '!J50="",0,'Data for submission '!J50) -> 4 | H32: =IF('Data for submission '!K50="",0,'Data for submission '!K50) -> 4 | I32: =IF('Data for submission '!L50="",0,'Data for submission '!L50) -> 24 | J32: =IF('Data for submission '!M50="",0,'Data for submission '!M50) -> 24 | K32: =IF('Data for submission '!N50="",0,'Data for submission '!N50) -> 39 | L32: =IF('Data for submission '!O50="",0,'Data for submission '!O50) -> 39 | M32: =IF('Data for submission '!P50="",0,'Data for submission '!P50) -> 4 | N32: =IF('Data for submission '!Q50="",0,'Data for submission '!Q50) -> 4 | O32: =IF(ISBLANK('Data for submission '!R50),"",'Data for submission '!R50) -> 
A33: 32 | B33: Ind1_Clin_MDTrainee grades | C33: =IF('Data for submission '!F51="",0,'Data for submission '!F51) -> 10 | D33: =IF('Data for submission '!G51="",0,'Data for submission '!G51) -> 57 | E33: =IF('Data for submission '!H51="",0,'Data for submission '!H51) -> 10 | F33: =IF('Data for submission '!I51="",0,'Data for submission '!I51) -> 56 | G33: =IF('Data for submission '!J51="",0,'Data for submission '!J51) -> 0 | H33: =IF('Data for submission '!K51="",0,'Data for submission '!K51) -> 6 | I33: =IF('Data for submission '!L51="",0,'Data for submission '!L51) -> 49 | J33: =IF('Data for submission '!M51="",0,'Data for submission '!M51) -> 49 | K33: =IF('Data for submission '!N51="",0,'Data for submission '!N51) -> 65 | L33: =IF('Data for submission '!O51="",0,'Data for submission '!O51) -> 65 | M33: =IF('Data for submission '!P51="",0,'Data for submission '!P51) -> 9 | N33: =IF('Data for submission '!Q51="",0,'Data for submission '!Q51) -> 9 | O33: =IF(ISBLANK('Data for submission '!R51),"",'Data for submission '!R51) -> 
A34: 33 | B34: Ind1_Clin_MDOther | C34: =IF('Data for submission '!F52="",0,'Data for submission '!F52) -> 28 | D34: =IF('Data for submission '!G52="",0,'Data for submission '!G52) -> 27 | E34: =IF('Data for submission '!H52="",0,'Data for submission '!H52) -> 28 | F34: =IF('Data for submission '!I52="",0,'Data for submission '!I52) -> 27 | G34: =IF('Data for submission '!J52="",0,'Data for submission '!J52) -> 4 | H34: =IF('Data for submission '!K52="",0,'Data for submission '!K52) -> 0 | I34: =IF('Data for submission '!L52="",0,'Data for submission '!L52) -> 5 | J34: =IF('Data for submission '!M52="",0,'Data for submission '!M52) -> 5 | K34: =IF('Data for submission '!N52="",0,'Data for submission '!N52) -> 3 | L34: =IF('Data for submission '!O52="",0,'Data for submission '!O52) -> 3 | M34: =IF('Data for submission '!P52="",0,'Data for submission '!P52) -> 0 | N34: =IF('Data for submission '!Q52="",0,'Data for submission '!Q52) -> 0 | O34: =IF(ISBLANK('Data for submission '!R52),"",'Data for submission '!R52) -> 
A35: 34 | B35: Ind2_Number of shortlisted applicants: | C35: =IF('Data for submission '!F53="",0,'Data for submission '!F53) -> 0 | D35: =IF('Data for submission '!G53="",0,'Data for submission '!G53) -> 2174 | E35: =IF('Data for submission '!H53="",0,'Data for submission '!H53) -> 0 | F35: =IF('Data for submission '!I53="",0,'Data for submission '!I53) -> 3123 | G35: =IF('Data for submission '!J53="",0,'Data for submission '!J53) -> 0 | H35: =IF('Data for submission '!K53="",0,'Data for submission '!K53) -> 39 | I35: =IF('Data for submission '!L53="",0,'Data for submission '!L53) -> 0 | J35: =IF('Data for submission '!M53="",0,'Data for submission '!M53) -> 1627 | K35: =IF('Data for submission '!N53="",0,'Data for submission '!N53) -> 0 | L35: =IF('Data for submission '!O53="",0,'Data for submission '!O53) -> 3737 | M35: =IF('Data for submission '!P53="",0,'Data for submission '!P53) -> 0 | N35: =IF('Data for submission '!Q53="",0,'Data for submission '!Q53) -> 199 | O35: =IF(ISBLANK('Data for submission '!R53),"",'Data for submission '!R53) -> 
A36: 35 | B36: Ind2_Number appointed from shortlisting: | C36: =IF('Data for submission '!F54="",0,'Data for submission '!F54) -> 0 | D36: =IF('Data for submission '!G54="",0,'Data for submission '!G54) -> 414 | E36: =IF('Data for submission '!H54="",0,'Data for submission '!H54) -> 0 | F36: =IF('Data for submission '!I54="",0,'Data for submission '!I54) -> 455 | G36: =IF('Data for submission '!J54="",0,'Data for submission '!J54) -> 0 | H36: =IF('Data for submission '!K54="",0,'Data for submission '!K54) -> 0 | I36: =IF('Data for submission '!L54="",0,'Data for submission '!L54) -> 0 | J36: =IF('Data for submission '!M54="",0,'Data for submission '!M54) -> 410 | K36: =IF('Data for submission '!N54="",0,'Data for submission '!N54) -> 0 | L36: =IF('Data for submission '!O54="",0,'Data for submission '!O54) -> 674 | M36: =IF('Data for submission '!P54="",0,'Data for submission '!P54) -> 0 | N36: =IF('Data for submission '!Q54="",0,'Data for submission '!Q54) -> 37 | O36: =IF(ISBLANK('Data for submission '!R54),"",'Data for submission '!R54) -> 
A37: 36 | B37: Ind2_Relative likelihood of shortlisting/appointed: | C37: =IF('Data for submission '!F55="",0,'Data for submission '!F55) -> 0 | D37: =IF('Data for submission '!G55="",0,'Data for submission '!G55) -> 0.1904323827 | E37: =IF('Data for submission '!H55="",0,'Data for submission '!H55) -> 0 | F37: =IF('Data for submission '!I55="",0,'Data for submission '!I55) -> 0.1456932437 | G37: =IF('Data for submission '!J55="",0,'Data for submission '!J55) -> 0 | H37: =IF('Data for submission '!K55="",0,'Data for submission '!K55) -> 0 | I37: =IF('Data for submission '!L55="",0,'Data for submission '!L55) -> 0 | J37: =IF('Data for submission '!M55="",0,'Data for submission '!M55) -> 0.2519975415 | K37: =IF('Data for submission '!N55="",0,'Data for submission '!N55) -> 0 | L37: =IF('Data for submission '!O55="",0,'Data for submission '!O55) -> 0.1803585764 | M37: =IF('Data for submission '!P55="",0,'Data for submission '!P55) -> 0 | N37: =IF('Data for submission '!Q55="",0,'Data for submission '!Q55) -> 0.1859296482 | O37: =IF(ISBLANK('Data for submission '!R55),"",'Data for submission '!R55) -> 
A38: 37 | B38: Ind2_Relative likelihood of White staff being appointed from shortlisting compared to BME staff: | C38: =IF('Data for submission '!F56="",0,'Data for submission '!F56) -> 0 | D38: =IF('Data for submission '!G56="",0,'Data for submission '!G56) -> 1.307077651 | E38: =IF('Data for submission '!H56="",0,'Data for submission '!H56) -> 0 | F38: =IF('Data for submission '!I56="",0,'Data for submission '!I56) -> 0 | G38: =IF('Data for submission '!J56="",0,'Data for submission '!J56) -> 0 | H38: =IF('Data for submission '!K56="",0,'Data for submission '!K56) -> 0 | I38: =IF('Data for submission '!L56="",0,'Data for submission '!L56) -> 0 | J38: =IF('Data for submission '!M56="",0,'Data for submission '!M56) -> 1.397202986 | K38: =IF('Data for submission '!N56="",0,'Data for submission '!N56) -> 0 | L38: =IF('Data for submission '!O56="",0,'Data for submission '!O56) -> 0 | M38: =IF('Data for submission '!P56="",0,'Data for submission '!P56) -> 0 | N38: =IF('Data for submission '!Q56="",0,'Data for submission '!Q56) -> 0 | O38: =IF(ISBLANK('Data for submission '!R56),"",'Data for submission '!R56) -> 
A39: 38 | B39: Ind3_Number of staff in workforce: | C39: =IF('Data for submission '!F57="",0,'Data for submission '!F57) -> 0 | D39: =IF('Data for submission '!G57="",0,'Data for submission '!G57) -> 2350 | E39: =IF('Data for submission '!H57="",0,'Data for submission '!H57) -> 0 | F39: =IF('Data for submission '!I57="",0,'Data for submission '!I57) -> 2633 | G39: =IF('Data for submission '!J57="",0,'Data for submission '!J57) -> 0 | H39: =IF('Data for submission '!K57="",0,'Data for submission '!K57) -> 95 | I39: =IF('Data for submission '!L57="",0,'Data for submission '!L57) -> 0 | J39: =IF('Data for submission '!M57="",0,'Data for submission '!M57) -> 2750 | K39: =IF('Data for submission '!N57="",0,'Data for submission '!N57) -> 0 | L39: =IF('Data for submission '!O57="",0,'Data for submission '!O57) -> 2784 | M39: =IF('Data for submission '!P57="",0,'Data for submission '!P57) -> 0 | N39: =IF('Data for submission '!Q57="",0,'Data for submission '!Q57) -> 188 | O39: =IF(ISBLANK('Data for submission '!R57),"",'Data for submission '!R57) -> 
A40: 39 | B40: Ind3_Number of staff entering the formal disciplinary process: | C40: =IF('Data for submission '!F58="",0,'Data for submission '!F58) -> 0 | D40: =IF('Data for submission '!G58="",0,'Data for submission '!G58) -> 18 | E40: =IF('Data for submission '!H58="",0,'Data for submission '!H58) -> 0 | F40: =IF('Data for submission '!I58="",0,'Data for submission '!I58) -> 56 | G40: =IF('Data for submission '!J58="",0,'Data for submission '!J58) -> 0 | H40: =IF('Data for submission '!K58="",0,'Data for submission '!K58) -> 0 | I40: =IF('Data for submission '!L58="",0,'Data for submission '!L58) -> 0 | J40: =IF('Data for submission '!M58="",0,'Data for submission '!M58) -> 15 | K40: =IF('Data for submission '!N58="",0,'Data for submission '!N58) -> 0 | L40: =IF('Data for submission '!O58="",0,'Data for submission '!O58) -> 37 | M40: =IF('Data for submission '!P58="",0,'Data for submission '!P58) -> 0 | N40: =IF('Data for submission '!Q58="",0,'Data for submission '!Q58) -> 0 | O40: =IF(ISBLANK('Data for submission '!R58),"",'Data for submission '!R58) -> 
A41: 40 | B41: Ind3_Likelihood of staff entering the formal disciplinary process: | C41: =IF('Data for submission '!F59="",0,'Data for submission '!F59) -> 0 | D41: =IF('Data for submission '!G59="",0,'Data for submission '!G59) -> 0.007659574468 | E41: =IF('Data for submission '!H59="",0,'Data for submission '!H59) -> 0 | F41: =IF('Data for submission '!I59="",0,'Data for submission '!I59) -> 0.021268515 | G41: =IF('Data for submission '!J59="",0,'Data for submission '!J59) -> 0 | H41: =IF('Data for submission '!K59="",0,'Data for submission '!K59) -> 0 | I41: =IF('Data for submission '!L59="",0,'Data for submission '!L59) -> 0 | J41: =IF('Data for submission '!M59="",0,'Data for submission '!M59) -> 0.005454545455 | K41: =IF('Data for submission '!N59="",0,'Data for submission '!N59) -> 0 | L41: =IF('Data for submission '!O59="",0,'Data for submission '!O59) -> 0.01329022989 | M41: =IF('Data for submission '!P59="",0,'Data for submission '!P59) -> 0 | N41: =IF('Data for submission '!Q59="",0,'Data for submission '!Q59) -> 0 | O41: =IF(ISBLANK('Data for submission '!R59),"",'Data for submission '!R59) -> 
A42: 41 | B42: Ind3_Relative likelihood of BME staff entering the formal disciplinary process compared to White staff: | C42: =IF('Data for submission '!F60="",0,'Data for submission '!F60) -> 0 | D42: =IF('Data for submission '!G60="",0,'Data for submission '!G60) -> 0 | E42: =IF('Data for submission '!H60="",0,'Data for submission '!H60) -> 0 | F42: =IF('Data for submission '!I60="",0,'Data for submission '!I60) -> 2.776722792 | G42: =IF('Data for submission '!J60="",0,'Data for submission '!J60) -> 0 | H42: =IF('Data for submission '!K60="",0,'Data for submission '!K60) -> 0 | I42: =IF('Data for submission '!L60="",0,'Data for submission '!L60) -> 0 | J42: =IF('Data for submission '!M60="",0,'Data for submission '!M60) -> 0 | K42: =IF('Data for submission '!N60="",0,'Data for submission '!N60) -> 0 | L42: =IF('Data for submission '!O60="",0,'Data for submission '!O60) -> 2.436542146 | M42: =IF('Data for submission '!P60="",0,'Data for submission '!P60) -> 0 | N42: =IF('Data for submission '!Q60="",0,'Data for submission '!Q60) -> 0 | O42: =IF(ISBLANK('Data for submission '!R60),"",'Data for submission '!R60) -> 
A43: 42 | B43: Ind4_Number of staff in workforce | C43: =IF('Data for submission '!F61="",0,'Data for submission '!F61) -> 0 | D43: =IF('Data for submission '!G61="",0,'Data for submission '!G61) -> 2350 | E43: =IF('Data for submission '!H61="",0,'Data for submission '!H61) -> 0 | F43: =IF('Data for submission '!I61="",0,'Data for submission '!I61) -> 2633 | G43: =IF('Data for submission '!J61="",0,'Data for submission '!J61) -> 0 | H43: =IF('Data for submission '!K61="",0,'Data for submission '!K61) -> 95 | I43: =IF('Data for submission '!L61="",0,'Data for submission '!L61) -> 0 | J43: =IF('Data for submission '!M61="",0,'Data for submission '!M61) -> 2750 | K43: =IF('Data for submission '!N61="",0,'Data for submission '!N61) -> 0 | L43: =IF('Data for submission '!O61="",0,'Data for submission '!O61) -> 2784 | M43: =IF('Data for submission '!P61="",0,'Data for submission '!P61) -> 0 | N43: =IF('Data for submission '!Q61="",0,'Data for submission '!Q61) -> 188 | O43: =IF(ISBLANK('Data for submission '!R61),"",'Data for submission '!R61) -> 
A44: 43 | B44: Ind4_Number of staff accessing non-mandatory training and CPD | C44: =IF('Data for submission '!F62="",0,'Data for submission '!F62) -> 0 | D44: =IF('Data for submission '!G62="",0,'Data for submission '!G62) -> 1036 | E44: =IF('Data for submission '!H62="",0,'Data for submission '!H62) -> 0 | F44: =IF('Data for submission '!I62="",0,'Data for submission '!I62) -> 1122 | G44: =IF('Data for submission '!J62="",0,'Data for submission '!J62) -> 0 | H44: =IF('Data for submission '!K62="",0,'Data for submission '!K62) -> 33 | I44: =IF('Data for submission '!L62="",0,'Data for submission '!L62) -> 0 | J44: =IF('Data for submission '!M62="",0,'Data for submission '!M62) -> 1469 | K44: =IF('Data for submission '!N62="",0,'Data for submission '!N62) -> 0 | L44: =IF('Data for submission '!O62="",0,'Data for submission '!O62) -> 1714 | M44: =IF('Data for submission '!P62="",0,'Data for submission '!P62) -> 0 | N44: =IF('Data for submission '!Q62="",0,'Data for submission '!Q62) -> 74 | O44: =IF(ISBLANK('Data for submission '!R62),"",'Data for submission '!R62) -> The following are sources that were used in the collection of this data: All doctors due to their weekly CPD; Health roster study days for activities that were non-stat and non-man training; Emails from executives, service delivery board members, DMT's and HR BPs confirming their CPD activity and that of their teams; OLM (for all centrally booked non-mandatory training programmes, including nursing development); Coaching, mentoring, 360 degree feedback as well as other individual diagnostic and develpment/psychometric tools; Information recieved from directorate education committees and development provider to community teams.
A45: 44 | B45: Ind4_Likelihood of staff accessing non-mandatory training and CPD: | C45: =IF('Data for submission '!F63="",0,'Data for submission '!F63) -> 0 | D45: =IF('Data for submission '!G63="",0,'Data for submission '!G63) -> 0.4408510638 | E45: =IF('Data for submission '!H63="",0,'Data for submission '!H63) -> 0 | F45: =IF('Data for submission '!I63="",0,'Data for submission '!I63) -> 0.4261298899 | G45: =IF('Data for submission '!J63="",0,'Data for submission '!J63) -> 0 | H45: =IF('Data for submission '!K63="",0,'Data for submission '!K63) -> 0.3473684211 | I45: =IF('Data for submission '!L63="",0,'Data for submission '!L63) -> 0 | J45: =IF('Data for submission '!M63="",0,'Data for submission '!M63) -> 0.5341818182 | K45: =IF('Data for submission '!N63="",0,'Data for submission '!N63) -> 0 | L45: =IF('Data for submission '!O63="",0,'Data for submission '!O63) -> 0.6156609195 | M45: =IF('Data for submission '!P63="",0,'Data for submission '!P63) -> 0 | N45: =IF('Data for submission '!Q63="",0,'Data for submission '!Q63) -> 0.3936170213 | O45: =IF(ISBLANK('Data for submission '!R63),"",'Data for submission '!R63) -> 
A46: 45 | B46: Ind4_Relative likelihood of White staff accessing non-mandatory training and CPD compared to BME staff: | C46: =IF('Data for submission '!F64="",0,'Data for submission '!F64) -> 0 | D46: =IF('Data for submission '!G64="",0,'Data for submission '!G64) -> 1.034546213 | E46: =IF('Data for submission '!H64="",0,'Data for submission '!H64) -> 0 | F46: =IF('Data for submission '!I64="",0,'Data for submission '!I64) -> 0 | G46: =IF('Data for submission '!J64="",0,'Data for submission '!J64) -> 0 | H46: =IF('Data for submission '!K64="",0,'Data for submission '!K64) -> 0 | I46: =IF('Data for submission '!L64="",0,'Data for submission '!L64) -> 0 | J46: =IF('Data for submission '!M64="",0,'Data for submission '!M64) -> 0.867655882 | K46: =IF('Data for submission '!N64="",0,'Data for submission '!N64) -> 0 | L46: =IF('Data for submission '!O64="",0,'Data for submission '!O64) -> 0 | M46: =IF('Data for submission '!P64="",0,'Data for submission '!P64) -> 0 | N46: =IF('Data for submission '!Q64="",0,'Data for submission '!Q64) -> 0 | O46: =IF(ISBLANK('Data for submission '!R64),"",'Data for submission '!R64) -> 
A47: 46 | B47: Ind_5% of staff experiencing harassment, bullying or abuse from patients, relatives or the public in last 12 months | C47: =IF('Data for submission '!F65="",0,'Data for submission '!F65) -> 0 | D47: =IF('Data for submission '!G65="",0,'Data for submission '!G65) -> 0.2891 | E47: =IF('Data for submission '!H65="",0,'Data for submission '!H65) -> 0 | F47: =IF('Data for submission '!I65="",0,'Data for submission '!I65) -> 0.3262 | G47: =IF('Data for submission '!J65="",0,'Data for submission '!J65) -> 0 | H47: =IF('Data for submission '!K65="",0,'Data for submission '!K65) -> 0 | I47: =IF('Data for submission '!L65="",0,'Data for submission '!L65) -> 0 | J47: =IF('Data for submission '!M65="",0,'Data for submission '!M65) -> 0.317 | K47: =IF('Data for submission '!N65="",0,'Data for submission '!N65) -> 0 | L47: =IF('Data for submission '!O65="",0,'Data for submission '!O65) -> 0.356 | M47: =IF('Data for submission '!P65="",0,'Data for submission '!P65) -> 0 | N47: =IF('Data for submission '!Q65="",0,'Data for submission '!Q65) -> 0 | O47: =IF(ISBLANK('Data for submission '!R65),"",'Data for submission '!R65) -> Please refer to the Picker staff survey RWK_East London NHS Foundation NNS18 RAG_Table _ Not experienced harassment, bullying or abuse from patients/service users, their relatives or members of the public. As this question is captured differently to the one on the WRES capture template - we have transposed the %
A48: 47 | B48: Ind6_% of staff experiencing harassment, bullying or abuse from staff in last 12 months | C48: =IF('Data for submission '!F66="",0,'Data for submission '!F66) -> 0 | D48: =IF('Data for submission '!G66="",0,'Data for submission '!G66) -> 0.2324 | E48: =IF('Data for submission '!H66="",0,'Data for submission '!H66) -> 0 | F48: =IF('Data for submission '!I66="",0,'Data for submission '!I66) -> 0.2257 | G48: =IF('Data for submission '!J66="",0,'Data for submission '!J66) -> 0 | H48: =IF('Data for submission '!K66="",0,'Data for submission '!K66) -> 0 | I48: =IF('Data for submission '!L66="",0,'Data for submission '!L66) -> 0 | J48: =IF('Data for submission '!M66="",0,'Data for submission '!M66) -> 0.162 | K48: =IF('Data for submission '!N66="",0,'Data for submission '!N66) -> 0 | L48: =IF('Data for submission '!O66="",0,'Data for submission '!O66) -> 0.18 | M48: =IF('Data for submission '!P66="",0,'Data for submission '!P66) -> 0 | N48: =IF('Data for submission '!Q66="",0,'Data for submission '!Q66) -> 0 | O48: =IF(ISBLANK('Data for submission '!R66),"",'Data for submission '!R66) -> Please refer to the Picker staff survey RWK_East London NHS Foundation NNS18 RAG_Table _ Not experienced harassment, bullying or abuse from other colleagues. As this question is captured differently to the one on the WRES capture template - we have transposed the %
A49: 48 | B49: Ind7_% staff believing that trust provides equal opportunities for career progression or promotion | C49: =IF('Data for submission '!F67="",0,'Data for submission '!F67) -> 0 | D49: =IF('Data for submission '!G67="",0,'Data for submission '!G67) -> 0.8381 | E49: =IF('Data for submission '!H67="",0,'Data for submission '!H67) -> 0 | F49: =IF('Data for submission '!I67="",0,'Data for submission '!I67) -> 0.7257 | G49: =IF('Data for submission '!J67="",0,'Data for submission '!J67) -> 0 | H49: =IF('Data for submission '!K67="",0,'Data for submission '!K67) -> 0 | I49: =IF('Data for submission '!L67="",0,'Data for submission '!L67) -> 0 | J49: =IF('Data for submission '!M67="",0,'Data for submission '!M67) -> 0.847 | K49: =IF('Data for submission '!N67="",0,'Data for submission '!N67) -> 0 | L49: =IF('Data for submission '!O67="",0,'Data for submission '!O67) -> 0.718 | M49: =IF('Data for submission '!P67="",0,'Data for submission '!P67) -> 0 | N49: =IF('Data for submission '!Q67="",0,'Data for submission '!Q67) -> 0 | O49: =IF(ISBLANK('Data for submission '!R67),"",'Data for submission '!R67) -> 
A50: 49 | B50: Ind8_% staff personally experienced discrimination at work from Manager/team leader or other colleague | C50: =IF('Data for submission '!F68="",0,'Data for submission '!F68) -> 0 | D50: =IF('Data for submission '!G68="",0,'Data for submission '!G68) -> 0.0909 | E50: =IF('Data for submission '!H68="",0,'Data for submission '!H68) -> 0 | F50: =IF('Data for submission '!I68="",0,'Data for submission '!I68) -> 0.1302 | G50: =IF('Data for submission '!J68="",0,'Data for submission '!J68) -> 0 | H50: =IF('Data for submission '!K68="",0,'Data for submission '!K68) -> 0 | I50: =IF('Data for submission '!L68="",0,'Data for submission '!L68) -> 0 | J50: =IF('Data for submission '!M68="",0,'Data for submission '!M68) -> 0.084 | K50: =IF('Data for submission '!N68="",0,'Data for submission '!N68) -> 0 | L50: =IF('Data for submission '!O68="",0,'Data for submission '!O68) -> 0.144 | M50: =IF('Data for submission '!P68="",0,'Data for submission '!P68) -> 0 | N50: =IF('Data for submission '!Q68="",0,'Data for submission '!Q68) -> 0 | O50: =IF(ISBLANK('Data for submission '!R68),"",'Data for submission '!R68) -> Please refer to the Picker staff survey RWK_East London NHS Foundation NNS18 RAG_Table _ Not experienced discrimination from manager/team leader or other colleagues. As this question is captured differently to the one on the WRES capture template - we have transposed the %
A51: 50 | B51: Ind9_Total Board members | C51: =IF('Data for submission '!F69="",0,'Data for submission '!F69) -> 0 | D51: =IF('Data for submission '!G69="",0,'Data for submission '!G69) -> 10 | E51: =IF('Data for submission '!H69="",0,'Data for submission '!H69) -> 0 | F51: =IF('Data for submission '!I69="",0,'Data for submission '!I69) -> 8 | G51: =IF('Data for submission '!J69="",0,'Data for submission '!J69) -> 0 | H51: =IF('Data for submission '!K69="",0,'Data for submission '!K69) -> 0 | I51: =IF('Data for submission '!L69="",0,'Data for submission '!L69) -> 0 | J51: =IF('Data for submission '!M69="",0,'Data for submission '!M69) -> 9 | K51: =IF('Data for submission '!N69="",0,'Data for submission '!N69) -> 0 | L51: =IF('Data for submission '!O69="",0,'Data for submission '!O69) -> 9 | M51: =IF('Data for submission '!P69="",0,'Data for submission '!P69) -> 0 | N51: =IF('Data for submission '!Q69="",0,'Data for submission '!Q69) -> 0 | O51: =IF(ISBLANK('Data for submission '!R69),"",'Data for submission '!R69) -> 
A52: 51 | B52: Ind9_ of which: Voting Board members | C52: =IF('Data for submission '!F70="",0,'Data for submission '!F70) -> 0 | D52: =IF('Data for submission '!G70="",0,'Data for submission '!G70) -> 8 | E52: =IF('Data for submission '!H70="",0,'Data for submission '!H70) -> 0 | F52: =IF('Data for submission '!I70="",0,'Data for submission '!I70) -> 7 | G52: =IF('Data for submission '!J70="",0,'Data for submission '!J70) -> 0 | H52: =IF('Data for submission '!K70="",0,'Data for submission '!K70) -> 0 | I52: =IF('Data for submission '!L70="",0,'Data for submission '!L70) -> 0 | J52: =IF('Data for submission '!M70="",0,'Data for submission '!M70) -> 8 | K52: =IF('Data for submission '!N70="",0,'Data for submission '!N70) -> 0 | L52: =IF('Data for submission '!O70="",0,'Data for submission '!O70) -> 7 | M52: =IF('Data for submission '!P70="",0,'Data for submission '!P70) -> 0 | N52: =IF('Data for submission '!Q70="",0,'Data for submission '!Q70) -> 0 | O52: =IF(ISBLANK('Data for submission '!R70),"",'Data for submission '!R70) -> 
A53: 52 | B53: Ind9_ : Non Voting Board members | C53: =IF('Data for submission '!F71="",0,'Data for submission '!F71) -> 0 | D53: =IF('Data for submission '!G71="",0,'Data for submission '!G71) -> 2 | E53: =IF('Data for submission '!H71="",0,'Data for submission '!H71) -> 0 | F53: =IF('Data for submission '!I71="",0,'Data for submission '!I71) -> 1 | G53: =IF('Data for submission '!J71="",0,'Data for submission '!J71) -> 0 | H53: =IF('Data for submission '!K71="",0,'Data for submission '!K71) -> 0 | I53: =IF('Data for submission '!L71="",0,'Data for submission '!L71) -> 0 | J53: =IF('Data for submission '!M71="",0,'Data for submission '!M71) -> 1 | K53: =IF('Data for submission '!N71="",0,'Data for submission '!N71) -> 0 | L53: =IF('Data for submission '!O71="",0,'Data for submission '!O71) -> 2 | M53: =IF('Data for submission '!P71="",0,'Data for submission '!P71) -> 0 | N53: =IF('Data for submission '!Q71="",0,'Data for submission '!Q71) -> 0 | O53: =IF(ISBLANK('Data for submission '!R71),"",'Data for submission '!R71) -> 
A54: 53 | B54: Ind9_Total Board members | C54: =IF('Data for submission '!F72="",0,'Data for submission '!F72) -> 0 | D54: =IF('Data for submission '!G72="",0,'Data for submission '!G72) -> 10 | E54: =IF('Data for submission '!H72="",0,'Data for submission '!H72) -> 0 | F54: =IF('Data for submission '!I72="",0,'Data for submission '!I72) -> 8 | G54: =IF('Data for submission '!J72="",0,'Data for submission '!J72) -> 0 | H54: =IF('Data for submission '!K72="",0,'Data for submission '!K72) -> 0 | I54: =IF('Data for submission '!L72="",0,'Data for submission '!L72) -> 0 | J54: =IF('Data for submission '!M72="",0,'Data for submission '!M72) -> 9 | K54: =IF('Data for submission '!N72="",0,'Data for submission '!N72) -> 0 | L54: =IF('Data for submission '!O72="",0,'Data for submission '!O72) -> 9 | M54: =IF('Data for submission '!P72="",0,'Data for submission '!P72) -> 0 | N54: =IF('Data for submission '!Q72="",0,'Data for submission '!Q72) -> 0 | O54: =IF(ISBLANK('Data for submission '!R72),"",'Data for submission '!R72) -> 
A55: 54 | B55: Ind9_ of which: Exec Board members | C55: =IF('Data for submission '!F73="",0,'Data for submission '!F73) -> 0 | D55: =IF('Data for submission '!G73="",0,'Data for submission '!G73) -> 5 | E55: =IF('Data for submission '!H73="",0,'Data for submission '!H73) -> 0 | F55: =IF('Data for submission '!I73="",0,'Data for submission '!I73) -> 5 | G55: =IF('Data for submission '!J73="",0,'Data for submission '!J73) -> 0 | H55: =IF('Data for submission '!K73="",0,'Data for submission '!K73) -> 0 | I55: =IF('Data for submission '!L73="",0,'Data for submission '!L73) -> 0 | J55: =IF('Data for submission '!M73="",0,'Data for submission '!M73) -> 4 | K55: =IF('Data for submission '!N73="",0,'Data for submission '!N73) -> 0 | L55: =IF('Data for submission '!O73="",0,'Data for submission '!O73) -> 6 | M55: =IF('Data for submission '!P73="",0,'Data for submission '!P73) -> 0 | N55: =IF('Data for submission '!Q73="",0,'Data for submission '!Q73) -> 0 | O55: =IF(ISBLANK('Data for submission '!R73),"",'Data for submission '!R73) -> 
A56: 55 | B56: Ind9_ : Non Executive Board members | C56: =IF('Data for submission '!F74="",0,'Data for submission '!F74) -> 0 | D56: =IF('Data for submission '!G74="",0,'Data for submission '!G74) -> 5 | E56: =IF('Data for submission '!H74="",0,'Data for submission '!H74) -> 0 | F56: =IF('Data for submission '!I74="",0,'Data for submission '!I74) -> 3 | G56: =IF('Data for submission '!J74="",0,'Data for submission '!J74) -> 0 | H56: =IF('Data for submission '!K74="",0,'Data for submission '!K74) -> 0 | I56: =IF('Data for submission '!L74="",0,'Data for submission '!L74) -> 0 | J56: =IF('Data for submission '!M74="",0,'Data for submission '!M74) -> 5 | K56: =IF('Data for submission '!N74="",0,'Data for submission '!N74) -> 0 | L56: =IF('Data for submission '!O74="",0,'Data for submission '!O74) -> 3 | M56: =IF('Data for submission '!P74="",0,'Data for submission '!P74) -> 0 | N56: =IF('Data for submission '!Q74="",0,'Data for submission '!Q74) -> 0 | O56: =IF(ISBLANK('Data for submission '!R74),"",'Data for submission '!R74) -> 
A57: 56 | B57: Ind9_Number of staff in overall workforce | C57: =IF('Data for submission '!F75="",0,'Data for submission '!F75) -> 0 | D57: =IF('Data for submission '!G75="",0,'Data for submission '!G75) -> 2350 | E57: =IF('Data for submission '!H75="",0,'Data for submission '!H75) -> 0 | F57: =IF('Data for submission '!I75="",0,'Data for submission '!I75) -> 2633 | G57: =IF('Data for submission '!J75="",0,'Data for submission '!J75) -> 0 | H57: =IF('Data for submission '!K75="",0,'Data for submission '!K75) -> 95 | I57: =IF('Data for submission '!L75="",0,'Data for submission '!L75) -> 0 | J57: =IF('Data for submission '!M75="",0,'Data for submission '!M75) -> 2750 | K57: =IF('Data for submission '!N75="",0,'Data for submission '!N75) -> 0 | L57: =IF('Data for submission '!O75="",0,'Data for submission '!O75) -> 2784 | M57: =IF('Data for submission '!P75="",0,'Data for submission '!P75) -> 0 | N57: =IF('Data for submission '!Q75="",0,'Data for submission '!Q75) -> 188 | O57: =IF(ISBLANK('Data for submission '!R75),"",'Data for submission '!R75) -> 
A58: 57 | B58: Ind9_Total Board members - % by Ethnicity | C58: =IF('Data for submission '!F76="",0,'Data for submission '!F76) -> 0 | D58: =IF('Data for submission '!G76="",0,'Data for submission '!G76) -> 0.5555555556 | E58: =IF('Data for submission '!H76="",0,'Data for submission '!H76) -> 0 | F58: =IF('Data for submission '!I76="",0,'Data for submission '!I76) -> 0.4444444444 | G58: =IF('Data for submission '!J76="",0,'Data for submission '!J76) -> 0 | H58: =IF('Data for submission '!K76="",0,'Data for submission '!K76) -> 0 | I58: =IF('Data for submission '!L76="",0,'Data for submission '!L76) -> 0 | J58: =IF('Data for submission '!M76="",0,'Data for submission '!M76) -> 0.5 | K58: =IF('Data for submission '!N76="",0,'Data for submission '!N76) -> 0 | L58: =IF('Data for submission '!O76="",0,'Data for submission '!O76) -> 0.5 | M58: =IF('Data for submission '!P76="",0,'Data for submission '!P76) -> 0 | N58: =IF('Data for submission '!Q76="",0,'Data for submission '!Q76) -> 0 | O58: =IF(ISBLANK('Data for submission '!R76),"",'Data for submission '!R76) -> 
A59: 58 | B59: Ind9_Voting Board Member - % by Ethnicity | C59: =IF('Data for submission '!F77="",0,'Data for submission '!F77) -> 0 | D59: =IF('Data for submission '!G77="",0,'Data for submission '!G77) -> 0.5333333333 | E59: =IF('Data for submission '!H77="",0,'Data for submission '!H77) -> 0 | F59: =IF('Data for submission '!I77="",0,'Data for submission '!I77) -> 0.4666666667 | G59: =IF('Data for submission '!J77="",0,'Data for submission '!J77) -> 0 | H59: =IF('Data for submission '!K77="",0,'Data for submission '!K77) -> 0 | I59: =IF('Data for submission '!L77="",0,'Data for submission '!L77) -> 0 | J59: =IF('Data for submission '!M77="",0,'Data for submission '!M77) -> 0.5333333333 | K59: =IF('Data for submission '!N77="",0,'Data for submission '!N77) -> 0 | L59: =IF('Data for submission '!O77="",0,'Data for submission '!O77) -> 0.4666666667 | M59: =IF('Data for submission '!P77="",0,'Data for submission '!P77) -> 0 | N59: =IF('Data for submission '!Q77="",0,'Data for submission '!Q77) -> 0 | O59: =IF(ISBLANK('Data for submission '!R77),"",'Data for submission '!R77) -> 
A60: 59 | B60: Ind9_Non Voting Board Member - % by Ethnicity | C60: =IF('Data for submission '!F78="",0,'Data for submission '!F78) -> 0 | D60: =IF('Data for submission '!G78="",0,'Data for submission '!G78) -> 0.6666666667 | E60: =IF('Data for submission '!H78="",0,'Data for submission '!H78) -> 0 | F60: =IF('Data for submission '!I78="",0,'Data for submission '!I78) -> 0.3333333333 | G60: =IF('Data for submission '!J78="",0,'Data for submission '!J78) -> 0 | H60: =IF('Data for submission '!K78="",0,'Data for submission '!K78) -> 0 | I60: =IF('Data for submission '!L78="",0,'Data for submission '!L78) -> 0 | J60: =IF('Data for submission '!M78="",0,'Data for submission '!M78) -> 0.3333333333 | K60: =IF('Data for submission '!N78="",0,'Data for submission '!N78) -> 0 | L60: =IF('Data for submission '!O78="",0,'Data for submission '!O78) -> 0.6666666667 | M60: =IF('Data for submission '!P78="",0,'Data for submission '!P78) -> 0 | N60: =IF('Data for submission '!Q78="",0,'Data for submission '!Q78) -> 0 | O60: =IF(ISBLANK('Data for submission '!R78),"",'Data for submission '!R78) -> 
A61: 60 | B61: Ind9_Executive Board Member - % by Ethnicity | C61: =IF('Data for submission '!F79="",0,'Data for submission '!F79) -> 0 | D61: =IF('Data for submission '!G79="",0,'Data for submission '!G79) -> 0.5 | E61: =IF('Data for submission '!H79="",0,'Data for submission '!H79) -> 0 | F61: =IF('Data for submission '!I79="",0,'Data for submission '!I79) -> 0.5 | G61: =IF('Data for submission '!J79="",0,'Data for submission '!J79) -> 0 | H61: =IF('Data for submission '!K79="",0,'Data for submission '!K79) -> 0 | I61: =IF('Data for submission '!L79="",0,'Data for submission '!L79) -> 0 | J61: =IF('Data for submission '!M79="",0,'Data for submission '!M79) -> 0.4 | K61: =IF('Data for submission '!N79="",0,'Data for submission '!N79) -> 0 | L61: =IF('Data for submission '!O79="",0,'Data for submission '!O79) -> 0.6 | M61: =IF('Data for submission '!P79="",0,'Data for submission '!P79) -> 0 | N61: =IF('Data for submission '!Q79="",0,'Data for submission '!Q79) -> 0 | O61: =IF(ISBLANK('Data for submission '!R79),"",'Data for submission '!R79) -> 
A62: 61 | B62: Ind9_Non Executive Board Member - % by Ethnicity | C62: =IF('Data for submission '!F80="",0,'Data for submission '!F80) -> 0 | D62: =IF('Data for submission '!G80="",0,'Data for submission '!G80) -> 0.625 | E62: =IF('Data for submission '!H80="",0,'Data for submission '!H80) -> 0 | F62: =IF('Data for submission '!I80="",0,'Data for submission '!I80) -> 0.375 | G62: =IF('Data for submission '!J80="",0,'Data for submission '!J80) -> 0 | H62: =IF('Data for submission '!K80="",0,'Data for submission '!K80) -> 0 | I62: =IF('Data for submission '!L80="",0,'Data for submission '!L80) -> 0 | J62: =IF('Data for submission '!M80="",0,'Data for submission '!M80) -> 0.625 | K62: =IF('Data for submission '!N80="",0,'Data for submission '!N80) -> 0 | L62: =IF('Data for submission '!O80="",0,'Data for submission '!O80) -> 0.375 | M62: =IF('Data for submission '!P80="",0,'Data for submission '!P80) -> 0 | N62: =IF('Data for submission '!Q80="",0,'Data for submission '!Q80) -> 0 | O62: =IF(ISBLANK('Data for submission '!R80),"",'Data for submission '!R80) -> 
A63: 62 | B63: Ind9_Overall workforce - % by Ethnicity | C63: =IF('Data for submission '!F81="",0,'Data for submission '!F81) -> 0 | D63: =IF('Data for submission '!G81="",0,'Data for submission '!G81) -> 0.4627806223 | E63: =IF('Data for submission '!H81="",0,'Data for submission '!H81) -> 0 | F63: =IF('Data for submission '!I81="",0,'Data for submission '!I81) -> 0.5185112249 | G63: =IF('Data for submission '!J81="",0,'Data for submission '!J81) -> 0 | H63: =IF('Data for submission '!K81="",0,'Data for submission '!K81) -> 0.01870815282 | I63: =IF('Data for submission '!L81="",0,'Data for submission '!L81) -> 0 | J63: =IF('Data for submission '!M81="",0,'Data for submission '!M81) -> 0.4806011884 | K63: =IF('Data for submission '!N81="",0,'Data for submission '!N81) -> 0 | L63: =IF('Data for submission '!O81="",0,'Data for submission '!O81) -> 0.4865431667 | M63: =IF('Data for submission '!P81="",0,'Data for submission '!P81) -> 0 | N63: =IF('Data for submission '!Q81="",0,'Data for submission '!Q81) -> 0.03285564488 | O63: =IF(ISBLANK('Data for submission '!R81),"",'Data for submission '!R81) -> 
A64: 63 | B64: Ind9_Difference (Total Board -Overall workforce ) | C64: =IF('Data for submission '!F82="",0,'Data for submission '!F82) -> 0 | D64: =IF('Data for submission '!G82="",0,'Data for submission '!G82) -> 0.09277493326 | E64: =IF('Data for submission '!H82="",0,'Data for submission '!H82) -> 0 | F64: =IF('Data for submission '!I82="",0,'Data for submission '!I82) -> -0.07406678045 | G64: =IF('Data for submission '!J82="",0,'Data for submission '!J82) -> 0 | H64: =IF('Data for submission '!K82="",0,'Data for submission '!K82) -> -0.01870815282 | I64: =IF('Data for submission '!L82="",0,'Data for submission '!L82) -> 0 | J64: =IF('Data for submission '!M82="",0,'Data for submission '!M82) -> 0.0193988116 | K64: =IF('Data for submission '!N82="",0,'Data for submission '!N82) -> 0 | L64: =IF('Data for submission '!O82="",0,'Data for submission '!O82) -> 0.01345683328 | M64: =IF('Data for submission '!P82="",0,'Data for submission '!P82) -> 0 | N64: =IF('Data for submission '!Q82="",0,'Data for submission '!Q82) -> -0.03285564488 | O64: =IF(ISBLANK('Data for submission '!R82),"",'Data for submission '!R82) -> 
